{"text_format":"3","workbook":"xlsx","n_sheets":4,"sheets":["Следене на оценките","Вашият успех","Настройки","Изчисления"],"not_rendered":{"defined_names":3,"comments":1},"read":"whole","date_system":"1900"}

{"sheet":"Следене на оценките","index":0,"n_rows":14,"n_cols":6,"rows_kept":14}
[null,"Въведете оценките си тук"]
[]
[null,null,"Предмет","Тип","Описание","Резултат"]
[null,null,"Френски","Домашна работа","История на ВСВ",{"v":0.8,"d":"80%"}]
[null,null,"Разширено програмиране на Java","Средносрочен изпит",null,{"v":0.75,"d":"75%"}]
[null,null,"Испански","Домашна работа",null,{"v":0.5,"d":"50%"}]
[null,null,"Теоретична физика","Домашна работа",null,{"v":0.95,"d":"95%"}]
[null,null,"Френски","Домашна работа","История на Първата световна война",{"v":0.9,"d":"90%"}]
[null,null,"Френски","Домашна работа","Страници 30-41",{"v":0.8,"d":"80%"}]
[null,null,"Съчинение","Есе","Курсова работа",{"v":0.95,"d":"95%"}]
[null,null,"Математика 1","Домашна работа","Страници 21 и 26",{"v":0.8,"d":"80%"}]
[null,null,"Математика 2","Домашна работа","Страници 15 и 18",{"v":0.85,"d":"85%"}]
[null,null,"Математика 1","Домашна работа","Страници 34-36",{"v":0.8,"d":"80%"}]
[null,null,"Математика 2","Тест",null,{"v":0.95,"d":"95%"}]

{"sheet":"Вашият успех","index":1,"n_rows":31,"n_cols":8,"rows_kept":31}
[null,"Вашият успех"]
[]
[null,null,"Общи суми"]
[null,null,{"$f":"\"Часове: \"&SUM(таблПредмети[Кредити])","v":"Часове: 24"},{"$f":"AVERAGE(D7:D31)","v":{"v":0.8104761904761906,"d":"81%"}},{"$f":"AVERAGE(E7:E31)","v":{"v":2.7142857142857144,"d":"2.71"}},{"$f":"SUM(F7:F31)","v":{"v":2.625,"d":"2.63"}},{"$f":"IFERROR(HLOOKUP(D4,послСреденУспех,2),\"\")","v":"B-"}]
[]
[null,null,"Предмети","%","Общ успех","Среден успех","Буква","Цялостно представяне"]
[null,null,{"$f":"Изчисления!C6","v":"Френски"},{"$f":"Изчисления!AL6","v":{"v":0.8333333333333334,"d":"83%"}},{"$f":"Изчисления!AM6","v":{"v":3,"d":"3.00"}},{"$f":"IFERROR(E7*Настройки!D9/SUM(таблПредмети[Кредити]),\"\")","v":{"v":0.375,"d":"0.38"}},{"$f":"Изчисления!AN6","v":"B"}]
[null,null,{"$f":"Изчисления!C7","v":"Теоретична физика"},{"$f":"Изчисления!AL7","v":{"v":0.95,"d":"95%"}},{"$f":"Изчисления!AM7","v":{"v":4,"d":"4.00"}},{"$f":"IFERROR(E8*Настройки!D10/SUM(таблПредмети[Кредити]),\"\")","v":{"v":0.5,"d":"0.50"}},{"$f":"Изчисления!AN7","v":"A"}]
[null,null,{"$f":"Изчисления!C8","v":"Математика 1"},{"$f":"Изчисления!AL8","v":{"v":0.8000000000000002,"d":"80%"}},{"$f":"Изчисления!AM8","v":2.67},{"$f":"IFERROR(E9*Настройки!D11/SUM(таблПредмети[Кредити]),\"\")","v":{"v":0.445,"d":"0.45"}},{"$f":"Изчисления!AN8","v":"B-"}]
[null,null,{"$f":"Изчисления!C9","v":"Математика 2"},{"$f":"Изчисления!AL9","v":{"v":0.89,"d":"89%"}},{"$f":"Изчисления!AM9","v":3.33},{"$f":"IFERROR(E10*Настройки!D12/SUM(таблПредмети[Кредити]),\"\")","v":{"v":0.555,"d":"0.56"}},{"$f":"Изчисления!AN9","v":"B+"}]
[null,null,{"$f":"Изчисления!C10","v":"Разширено програмиране на Java"},{"$f":"Изчисления!AL10","v":{"v":0.7500000000000001,"d":"75%"}},{"$f":"Изчисления!AM10","v":{"v":2,"d":"2.00"}},{"$f":"IFERROR(E11*Настройки!D13/SUM(таблПредмети[Кредити]),\"\")","v":{"v":0.4166666666666667,"d":"0.42"}},{"$f":"Изчисления!AN10","v":"C"}]
[null,null,{"$f":"Изчисления!C11","v":"Испански"},{"$f":"Изчисления!AL11","v":{"v":0.5,"d":"50%"}},{"$f":"Изчисления!AM11","v":{"v":0,"d":"0.00"}},{"$f":"IFERROR(E12*Настройки!D14/SUM(таблПредмети[Кредити]),\"\")","v":{"v":0,"d":"0.00"}},{"$f":"Изчисления!AN11","v":"F"}]
[null,null,{"$f":"Изчисления!C12","v":"Съчинение"},{"$f":"Изчисления!AL12","v":{"v":0.95,"d":"95%"}},{"$f":"Изчисления!AM12","v":{"v":4,"d":"4.00"}},{"$f":"IFERROR(E13*Настройки!D15/SUM(таблПредмети[Кредити]),\"\")","v":{"v":0.3333333333333333,"d":"0.33"}},{"$f":"Изчисления!AN12","v":"A"}]
[null,null,{"$f":"Изчисления!C13","v":""},{"$f":"Изчисления!AL13","v":""},{"$f":"Изчисления!AM13","v":""},{"$f":"IFERROR(E14*Настройки!D16/SUM(таблПредмети[Кредити]),\"\")","v":""},{"$f":"Изчисления!AN13","v":""}]
[null,null,{"$f":"Изчисления!C14","v":""},{"$f":"Изчисления!AL14","v":""},{"$f":"Изчисления!AM14","v":""},{"$f":"IFERROR(E15*Настройки!D17/SUM(таблПредмети[Кредити]),\"\")","v":""},{"$f":"Изчисления!AN14","v":""}]
[null,null,{"$f":"Изчисления!C15","v":""},{"$f":"Изчисления!AL15","v":""},{"$f":"Изчисления!AM15","v":""},{"$f":"IFERROR(E16*Настройки!D18/SUM(таблПредмети[Кредити]),\"\")","v":""},{"$f":"Изчисления!AN15","v":""}]
[null,null,{"$f":"Изчисления!C16","v":""},{"$f":"Изчисления!AL16","v":""},{"$f":"Изчисления!AM16","v":""},{"$f":"IFERROR(E17*Настройки!D19/SUM(таблПредмети[Кредити]),\"\")","v":""},{"$f":"Изчисления!AN16","v":""}]
[null,null,{"$f":"Изчисления!C17","v":""},{"$f":"Изчисления!AL17","v":""},{"$f":"Изчисления!AM17","v":""},{"$f":"IFERROR(E18*Настройки!D20/SUM(таблПредмети[Кредити]),\"\")","v":""},{"$f":"Изчисления!AN17","v":""}]
[null,null,{"$f":"Изчисления!C18","v":""},{"$f":"Изчисления!AL18","v":""},{"$f":"Изчисления!AM18","v":""},{"$f":"IFERROR(E19*Настройки!D21/SUM(таблПредмети[Кредити]),\"\")","v":""},{"$f":"Изчисления!AN18","v":""}]
[null,null,{"$f":"Изчисления!C19","v":""},{"$f":"Изчисления!AL19","v":""},{"$f":"Изчисления!AM19","v":""},{"$f":"IFERROR(E20*Настройки!D22/SUM(таблПредмети[Кредити]),\"\")","v":""},{"$f":"Изчисления!AN19","v":""}]
[null,null,{"$f":"Изчисления!C20","v":""},{"$f":"Изчисления!AL20","v":""},{"$f":"Изчисления!AM20","v":""},{"$f":"IFERROR(E21*Настройки!D23/SUM(таблПредмети[Кредити]),\"\")","v":""},{"$f":"Изчисления!AN20","v":""}]
[null,null,{"$f":"Изчисления!C21","v":""},{"$f":"Изчисления!AL21","v":""},{"$f":"Изчисления!AM21","v":""},{"$f":"IFERROR(E22*Настройки!D24/SUM(таблПредмети[Кредити]),\"\")","v":""},{"$f":"Изчисления!AN21","v":""}]
[null,null,{"$f":"Изчисления!C22","v":""},{"$f":"Изчисления!AL22","v":""},{"$f":"Изчисления!AM22","v":""},{"$f":"IFERROR(E23*Настройки!D25/SUM(таблПредмети[Кредити]),\"\")","v":""},{"$f":"Изчисления!AN22","v":""}]
[null,null,{"$f":"Изчисления!C23","v":""},{"$f":"Изчисления!AL23","v":""},{"$f":"Изчисления!AM23","v":""},{"$f":"IFERROR(E24*Настройки!D26/SUM(таблПредмети[Кредити]),\"\")","v":""},{"$f":"Изчисления!AN23","v":""}]
[null,null,{"$f":"Изчисления!C24","v":""},{"$f":"Изчисления!AL24","v":""},{"$f":"Изчисления!AM24","v":""},{"$f":"IFERROR(E25*Настройки!D27/SUM(таблПредмети[Кредити]),\"\")","v":""},{"$f":"Изчисления!AN24","v":""}]
[null,null,{"$f":"Изчисления!C25","v":""},{"$f":"Изчисления!AL25","v":""},{"$f":"Изчисления!AM25","v":""},{"$f":"IFERROR(E26*Настройки!D28/SUM(таблПредмети[Кредити]),\"\")","v":""},{"$f":"Изчисления!AN25","v":""}]
[null,null,{"$f":"Изчисления!C26","v":""},{"$f":"Изчисления!AL26","v":""},{"$f":"Изчисления!AM26","v":""},{"$f":"IFERROR(E27*Настройки!D29/SUM(таблПредмети[Кредити]),\"\")","v":""},{"$f":"Изчисления!AN26","v":""}]
[null,null,{"$f":"Изчисления!C27","v":""},{"$f":"Изчисления!AL27","v":""},{"$f":"Изчисления!AM27","v":""},{"$f":"IFERROR(E28*Настройки!D30/SUM(таблПредмети[Кредити]),\"\")","v":""},{"$f":"Изчисления!AN27","v":""}]
[null,null,{"$f":"Изчисления!C28","v":""},{"$f":"Изчисления!AL28","v":""},{"$f":"Изчисления!AM28","v":""},{"$f":"IFERROR(E29*Настройки!D31/SUM(таблПредмети[Кредити]),\"\")","v":""},{"$f":"Изчисления!AN28","v":""}]
[null,null,{"$f":"Изчисления!C29","v":""},{"$f":"Изчисления!AL29","v":""},{"$f":"Изчисления!AM29","v":""},{"$f":"IFERROR(E30*Настройки!D32/SUM(таблПредмети[Кредити]),\"\")","v":""},{"$f":"Изчисления!AN29","v":""}]
[null,null,{"$f":"Изчисления!C30","v":""},{"$f":"Изчисления!AL30","v":""},{"$f":"Изчисления!AM30","v":""},{"$f":"IFERROR(E31*Настройки!D33/SUM(таблПредмети[Кредити]),\"\")","v":""},{"$f":"Изчисления!AN30","v":""}]

{"sheet":"Настройки","index":2,"n_rows":15,"n_cols":16,"rows_kept":15,"merged":[[5,2,5,15]]}
[null,"Настройки"]
[null,null,"Оценки и среден успех"]
[null,null,"Процент",{"v":0,"d":"0%"},{"v":0.6,"d":"60%"},{"v":0.63,"d":"63%"},{"v":0.67,"d":"67%"},{"v":0.7,"d":"70%"},{"v":0.73,"d":"73%"},{"v":0.77,"d":"77%"},{"v":0.8,"d":"80%"},{"v":0.83,"d":"83%"},{"v":0.87,"d":"87%"},{"v":0.9,"d":"90%"},{"v":0.93,"d":"93%"},{"v":0.97,"d":"97%"}]
[null,null,"Крайна оценка","F","D-","D","D+","C-","C","C+","B-","B","B+","A-","A","A+"]
[null,null,"Общ успех",0,0.67,1,1.33,1.67,2,2.33,2.67,3,3.33,3.67,4,4]
[]
[null,null,"Претеглени оценки за до 25 предмета"]
[null,null,"Предмети, които вземате","Кредити","Домашна работа","Есе","Тест","Проект","Средносрочен изпит","Заключителен изпит","Други","% общо"]
[null,null,"Френски",{"v":3,"d":"3.0"},{"v":0.1,"d":"10%"},{"v":0.15,"d":"15%"},{"v":0.15,"d":"15%"},{"v":0.1,"d":"10%"},{"v":0.2,"d":"20%"},{"v":0.3,"d":"30%"},null,{"$f":"SUM(таблПредмети[[#This Row],[Домашна работа]:[Други]])","v":{"v":1,"d":"100%"}}]
[null,null,"Теоретична физика",{"v":3,"d":"3.0"},{"v":0.15,"d":"15%"},{"v":0.15,"d":"15%"},{"v":0.1,"d":"10%"},{"v":0.1,"d":"10%"},{"v":0.15,"d":"15%"},{"v":0.3,"d":"30%"},{"v":0.05,"d":"5%"},{"$f":"SUM(таблПредмети[[#This Row],[Домашна работа]:[Други]])","v":{"v":1,"d":"100%"}}]
[null,null,"Математика 1",{"v":4,"d":"4.0"},{"v":0.1,"d":"10%"},{"v":0.15,"d":"15%"},{"v":0.15,"d":"15%"},{"v":0.1,"d":"10%"},{"v":0.2,"d":"20%"},{"v":0.3,"d":"30%"},null,{"$f":"SUM(таблПредмети[[#This Row],[Домашна работа]:[Други]])","v":{"v":1,"d":"100%"}}]
[null,null,"Математика 2",{"v":4,"d":"4.0"},{"v":0.15,"d":"15%"},{"v":0.15,"d":"15%"},{"v":0.1,"d":"10%"},{"v":0.1,"d":"10%"},{"v":0.15,"d":"15%"},{"v":0.3,"d":"30%"},{"v":0.05,"d":"5%"},{"$f":"SUM(таблПредмети[[#This Row],[Домашна работа]:[Други]])","v":{"v":1,"d":"100%"}}]
[null,null,"Разширено програмиране на Java",{"v":5,"d":"5.0"},{"v":0.15,"d":"15%"},{"v":0.15,"d":"15%"},{"v":0.1,"d":"10%"},{"v":0.1,"d":"10%"},{"v":0.2,"d":"20%"},{"v":0.3,"d":"30%"},null,{"$f":"SUM(таблПредмети[[#This Row],[Домашна работа]:[Други]])","v":{"v":1,"d":"100%"}}]
[null,null,"Испански",{"v":3,"d":"3.0"},{"v":0.1,"d":"10%"},{"v":0.15,"d":"15%"},{"v":0.17,"d":"17%"},{"v":0.13,"d":"13%"},{"v":0.2,"d":"20%"},{"v":0.2,"d":"20%"},{"v":0.05,"d":"5%"},{"$f":"SUM(таблПредмети[[#This Row],[Домашна работа]:[Други]])","v":{"v":1,"d":"100%"}}]
[null,null,"Съчинение",{"v":2,"d":"2.0"},{"v":0.15,"d":"15%"},{"v":0.15,"d":"15%"},{"v":0.12,"d":"12%"},{"v":0.15,"d":"15%"},{"v":0.15,"d":"15%"},{"v":0.25,"d":"25%"},{"v":0.03,"d":"3%"},{"$f":"SUM(таблПредмети[[#This Row],[Домашна работа]:[Други]])","v":{"v":1,"d":"100%"}}]

{"sheet":"Изчисления","index":3,"n_rows":657,"n_cols":40,"rows_kept":657,"hidden":true}
[null,"Изчисления"]
[null,null,"Този работен лист съдържа изчисленията за вашите оценки и среден успех и трябва да остане скрит. Всякакви промени в този лист може да доведат до грешки."]
[]
[null,null,"Текущ списък на курсове","Успех (от 1)",{"$nulls":24},"Изчисляване на оценка"]
[null,null,"Предмет",1,2,3,4,5,6,7,8,9,10,11,12,13,14,15,16,17,18,19,20,21,22,23,24,25,{"$f":"таблПредмети[[#Headers],[Домашна работа]]","v":"Домашна работа"},{"$f":"таблПредмети[[#Headers],[Есе]]","v":"Есе"},{"$f":"таблПредмети[[#Headers],[Тест]]","v":"Тест"},{"$f":"таблПредмети[[#Headers],[Проект]]","v":"Проект"},{"$f":"таблПредмети[[#Headers],[Средносрочен изпит]]","v":"Средносрочен изпит"},{"$f":"таблПредмети[[#Headers],[Заключителен изпит]]","v":"Заключителен изпит"},{"$f":"таблПредмети[[#Headers],[Други]]","v":"Други"},"Общо","Общо възможни точки","Общо %","Оценка","Крайна оценка"]
[null,null,{"$f":"IF(Настройки!C9=\"\",\"\",Настройки!C9)","v":"Френски"},{"$f":"IFERROR(INDEX(тблОценкиПредмети[],MATCH($C6:$C30&D$5:AB$5,Изчисления!$C$33:$C$657,0),4),\"\")","v":{"v":0.8,"d":"80%"}},{"v":0.9,"d":"90%"},{"v":0.8,"d":"80%"},"","","","","","","","","","","","","","","","","","","","","","",{"$f":"IFERROR(AVERAGEIFS(тблОценкиПредмети[Резултат],тблОценкиПредмети[Предмет],Изчисления!$C6,тблОценкиПредмети[Тип],Изчисления!AC$5)*Настройки!E9,\"\")","v":0.08333333333333334},{"$f":"IFERROR(AVERAGEIFS(тблОценкиПредмети[Резултат],тблОценкиПредмети[Предмет],Изчисления!$C6,тблОценкиПредмети[Тип],Изчисления!AD$5)*Настройки!F9,\"\")","v":""},{"$f":"IFERROR(AVERAGEIFS(тблОценкиПредмети[Резултат],тблОценкиПредмети[Предмет],Изчисления!$C6,тблОценкиПредмети[Тип],Изчисления!AE$5)*Настройки!G9,\"\")","v":""},{"$f":"IFERROR(AVERAGEIFS(тблОценкиПредмети[Резултат],тблОценкиПредмети[Предмет],Изчисления!$C6,тблОценкиПредмети[Тип],Изчисления!AF$5)*Настройки!H9,\"\")","v":""},{"$f":"IFERROR(AVERAGEIFS(тблОценкиПредмети[Резултат],тблОценкиПредмети[Предмет],Изчисления!$C6,тблОценкиПредмети[Тип],Изчисления!AG$5)*Настройки!I9,\"\")","v":""},{"$f":"IFERROR(AVERAGEIFS(тблОценкиПредмети[Резултат],тблОценкиПредмети[Предмет],Изчисления!$C6,тблОценкиПредмети[Тип],Изчисления!AH$5)*Настройки!J9,\"\")","v":""},{"$f":"IFERROR(AVERAGEIFS(тблОценкиПредмети[Резултат],тблОценкиПредмети[Предмет],Изчисления!$C6,тблОценкиПредмети[Тип],Изчисления!AI$5)*Настройки!K9,\"\")","v":""},{"$f":"SUM(AC6:AI6)","v":0.08333333333333334},{"$f":"SUMIFS(Настройки!E9:K9,Изчисления!AC6:AI6,\">0\")","v":0.1},{"$f":"IFERROR(AJ6/AK6,\"\")","v":{"v":0.8333333333333334,"d":"83%"}},{"$f":"IFERROR(HLOOKUP(AL6,послСреденУспех,3),\"\")","v":3},{"$f":"IFERROR(HLOOKUP(AL6,послСреденУспех,2),\"\")","v":"B"}]
[null,null,{"$f":"IF(Настройки!C10=\"\",\"\",Настройки!C10)","v":"Теоретична физика"},{"v":0.95,"d":"95%"},"","","","","","","","","","","","","","","","","","","","","","","","",{"$f":"IFERROR(AVERAGEIFS(тблОценкиПредмети[Резултат],тблОценкиПредмети[Предмет],Изчисления!$C7,тблОценкиПредмети[Тип],Изчисления!AC$5)*Настройки!E10,\"\")","v":0.1425},{"$f":"IFERROR(AVERAGEIFS(тблОценкиПредмети[Резултат],тблОценкиПредмети[Предмет],Изчисления!$C7,тблОценкиПредмети[Тип],Изчисления!AD$5)*Настройки!F10,\"\")","v":""},{"$f":"IFERROR(AVERAGEIFS(тблОценкиПредмети[Резултат],тблОценкиПредмети[Предмет],Изчисления!$C7,тблОценкиПредмети[Тип],Изчисления!AE$5)*Настройки!G10,\"\")","v":""},{"$f":"IFERROR(AVERAGEIFS(тблОценкиПредмети[Резултат],тблОценкиПредмети[Предмет],Изчисления!$C7,тблОценкиПредмети[Тип],Изчисления!AF$5)*Настройки!H10,\"\")","v":""},{"$f":"IFERROR(AVERAGEIFS(тблОценкиПредмети[Резултат],тблОценкиПредмети[Предмет],Изчисления!$C7,тблОценкиПредмети[Тип],Изчисления!AG$5)*Настройки!I10,\"\")","v":""},{"$f":"IFERROR(AVERAGEIFS(тблОценкиПредмети[Резултат],тблОценкиПредмети[Предмет],Изчисления!$C7,тблОценкиПредмети[Тип],Изчисления!AH$5)*Настройки!J10,\"\")","v":""},{"$f":"IFERROR(AVERAGEIFS(тблОценкиПредмети[Резултат],тблОценкиПредмети[Предмет],Изчисления!$C7,тблОценкиПредмети[Тип],Изчисления!AI$5)*Настройки!K10,\"\")","v":""},{"$f":"SUM(AC7:AI7)","v":0.1425},{"$f":"SUMIFS(Настройки!E10:K10,Изчисления!AC7:AI7,\">0\")","v":0.15},{"$f":"IFERROR(AJ7/AK7,\"\")","v":{"v":0.95,"d":"95%"}},4,"A"]
[null,null,{"$f":"IF(Настройки!C11=\"\",\"\",Настройки!C11)","v":"Математика 1"},{"v":0.8,"d":"80%"},{"v":0.8,"d":"80%"},"","","","","","","","","","","","","","","","","","","","","","","",{"$f":"IFERROR(AVERAGEIFS(тблОценкиПредмети[Резултат],тблОценкиПредмети[Предмет],Изчисления!$C8,тблОценкиПредмети[Тип],Изчисления!AC$5)*Настройки!E11,\"\")","v":0.08000000000000002},{"$f":"IFERROR(AVERAGEIFS(тблОценкиПредмети[Резултат],тблОценкиПредмети[Предмет],Изчисления!$C8,тблОценкиПредмети[Тип],Изчисления!AD$5)*Настройки!F11,\"\")","v":""},{"$f":"IFERROR(AVERAGEIFS(тблОценкиПредмети[Резултат],тблОценкиПредмети[Предмет],Изчисления!$C8,тблОценкиПредмети[Тип],Изчисления!AE$5)*Настройки!G11,\"\")","v":""},{"$f":"IFERROR(AVERAGEIFS(тблОценкиПредмети[Резултат],тблОценкиПредмети[Предмет],Изчисления!$C8,тблОценкиПредмети[Тип],Изчисления!AF$5)*Настройки!H11,\"\")","v":""},{"$f":"IFERROR(AVERAGEIFS(тблОценкиПредмети[Резултат],тблОценкиПредмети[Предмет],Изчисления!$C8,тблОценкиПредмети[Тип],Изчисления!AG$5)*Настройки!I11,\"\")","v":""},{"$f":"IFERROR(AVERAGEIFS(тблОценкиПредмети[Резултат],тблОценкиПредмети[Предмет],Изчисления!$C8,тблОценкиПредмети[Тип],Изчисления!AH$5)*Настройки!J11,\"\")","v":""},{"$f":"IFERROR(AVERAGEIFS(тблОценкиПредмети[Резултат],тблОценкиПредмети[Предмет],Изчисления!$C8,тблОценкиПредмети[Тип],Изчисления!AI$5)*Настройки!K11,\"\")","v":""},0.08000000000000002,{"$f":"SUMIFS(Настройки!E11:K11,Изчисления!AC8:AI8,\">0\")","v":0.1},{"v":0.8000000000000002,"d":"80%"},2.67,"B-"]
[null,null,{"$f":"IF(Настройки!C12=\"\",\"\",Настройки!C12)","v":"Математика 2"},{"v":0.85,"d":"85%"},{"v":0.95,"d":"95%"},"","","","","","","","","","","","","","","","","","","","","","","",{"$f":"IFERROR(AVERAGEIFS(тблОценкиПредмети[Резултат],тблОценкиПредмети[Предмет],Изчисления!$C9,тблОценкиПредмети[Тип],Изчисления!AC$5)*Настройки!E12,\"\")","v":0.1275},{"$f":"IFERROR(AVERAGEIFS(тблОценкиПредмети[Резултат],тблОценкиПредмети[Предмет],Изчисления!$C9,тблОценкиПредмети[Тип],Изчисления!AD$5)*Настройки!F12,\"\")","v":""},{"$f":"IFERROR(AVERAGEIFS(тблОценкиПредмети[Резултат],тблОценкиПредмети[Предмет],Изчисления!$C9,тблОценкиПредмети[Тип],Изчисления!AE$5)*Настройки!G12,\"\")","v":0.095},{"$f":"IFERROR(AVERAGEIFS(тблОценкиПредмети[Резултат],тблОценкиПредмети[Предмет],Изчисления!$C9,тблОценкиПредмети[Тип],Изчисления!AF$5)*Настройки!H12,\"\")","v":""},{"$f":"IFERROR(AVERAGEIFS(тблОценкиПредмети[Резултат],тблОценкиПредмети[Предмет],Изчисления!$C9,тблОценкиПредмети[Тип],Изчисления!AG$5)*Настройки!I12,\"\")","v":""},{"$f":"IFERROR(AVERAGEIFS(тблОценкиПредмети[Резултат],тблОценкиПредмети[Предмет],Изчисления!$C9,тблОценкиПредмети[Тип],Изчисления!AH$5)*Настройки!J12,\"\")","v":""},{"$f":"IFERROR(AVERAGEIFS(тблОценкиПредмети[Резултат],тблОценкиПредмети[Предмет],Изчисления!$C9,тблОценкиПредмети[Тип],Изчисления!AI$5)*Настройки!K12,\"\")","v":""},0.2225,{"$f":"SUMIFS(Настройки!E12:K12,Изчисления!AC9:AI9,\">0\")","v":0.25},{"v":0.89,"d":"89%"},3.33,"B+"]
[null,null,{"$f":"IF(Настройки!C13=\"\",\"\",Настройки!C13)","v":"Разширено програмиране на Java"},{"v":0.75,"d":"75%"},"","","","","","","","","","","","","","","","","","","","","","","","",{"$f":"IFERROR(AVERAGEIFS(тблОценкиПредмети[Резултат],тблОценкиПредмети[Предмет],Изчисления!$C10,тблОценкиПредмети[Тип],Изчисления!AC$5)*Настройки!E13,\"\")","v":""},{"$f":"IFERROR(AVERAGEIFS(тблОценкиПредмети[Резултат],тблОценкиПредмети[Предмет],Изчисления!$C10,тблОценкиПредмети[Тип],Изчисления!AD$5)*Настройки!F13,\"\")","v":""},{"$f":"IFERROR(AVERAGEIFS(тблОценкиПредмети[Резултат],тблОценкиПредмети[Предмет],Изчисления!$C10,тблОценкиПредмети[Тип],Изчисления!AE$5)*Настройки!G13,\"\")","v":""},{"$f":"IFERROR(AVERAGEIFS(тблОценкиПредмети[Резултат],тблОценкиПредмети[Предмет],Изчисления!$C10,тблОценкиПредмети[Тип],Изчисления!AF$5)*Настройки!H13,\"\")","v":""},{"$f":"IFERROR(AVERAGEIFS(тблОценкиПредмети[Резултат],тблОценкиПредмети[Предмет],Изчисления!$C10,тблОценкиПредмети[Тип],Изчисления!AG$5)*Настройки!I13,\"\")","v":0.15000000000000002},{"$f":"IFERROR(AVERAGEIFS(тблОценкиПредмети[Резултат],тблОценкиПредмети[Предмет],Изчисления!$C10,тблОценкиПредмети[Тип],Изчисления!AH$5)*Настройки!J13,\"\")","v":""},{"$f":"IFERROR(AVERAGEIFS(тблОценкиПредмети[Резултат],тблОценкиПредмети[Предмет],Изчисления!$C10,тблОценкиПредмети[Тип],Изчисления!AI$5)*Настройки!K13,\"\")","v":""},0.15000000000000002,{"$f":"SUMIFS(Настройки!E13:K13,Изчисления!AC10:AI10,\">0\")","v":0.2},{"v":0.7500000000000001,"d":"75%"},2,"C"]
[null,null,{"$f":"IF(Настройки!C14=\"\",\"\",Настройки!C14)","v":"Испански"},{"v":0.5,"d":"50%"},"","","","","","","","","","","","","","","","","","","","","","","","",{"$f":"IFERROR(AVERAGEIFS(тблОценкиПредмети[Резултат],тблОценкиПредмети[Предмет],Изчисления!$C11,тблОценкиПредмети[Тип],Изчисления!AC$5)*Настройки!E14,\"\")","v":0.05},{"$f":"IFERROR(AVERAGEIFS(тблОценкиПредмети[Резултат],тблОценкиПредмети[Предмет],Изчисления!$C11,тблОценкиПредмети[Тип],Изчисления!AD$5)*Настройки!F14,\"\")","v":""},{"$f":"IFERROR(AVERAGEIFS(тблОценкиПредмети[Резултат],тблОценкиПредмети[Предмет],Изчисления!$C11,тблОценкиПредмети[Тип],Изчисления!AE$5)*Настройки!G14,\"\")","v":""},{"$f":"IFERROR(AVERAGEIFS(тблОценкиПредмети[Резултат],тблОценкиПредмети[Предмет],Изчисления!$C11,тблОценкиПредмети[Тип],Изчисления!AF$5)*Настройки!H14,\"\")","v":""},{"$f":"IFERROR(AVERAGEIFS(тблОценкиПредмети[Резултат],тблОценкиПредмети[Предмет],Изчисления!$C11,тблОценкиПредмети[Тип],Изчисления!AG$5)*Настройки!I14,\"\")","v":""},{"$f":"IFERROR(AVERAGEIFS(тблОценкиПредмети[Резултат],тблОценкиПредмети[Предмет],Изчисления!$C11,тблОценкиПредмети[Тип],Изчисления!AH$5)*Настройки!J14,\"\")","v":""},{"$f":"IFERROR(AVERAGEIFS(тблОценкиПредмети[Резултат],тблОценкиПредмети[Предмет],Изчисления!$C11,тблОценкиПредмети[Тип],Изчисления!AI$5)*Настройки!K14,\"\")","v":""},0.05,{"$f":"SUMIFS(Настройки!E14:K14,Изчисления!AC11:AI11,\">0\")","v":0.1},{"v":0.5,"d":"50%"},0,"F"]
[null,null,{"$f":"IF(Настройки!C15=\"\",\"\",Настройки!C15)","v":"Съчинение"},{"v":0.95,"d":"95%"},"","","","","","","","","","","","","","","","","","","","","","","","",{"$f":"IFERROR(AVERAGEIFS(тблОценкиПредмети[Резултат],тблОценкиПредмети[Предмет],Изчисления!$C12,тблОценкиПредмети[Тип],Изчисления!AC$5)*Настройки!E15,\"\")","v":""},{"$f":"IFERROR(AVERAGEIFS(тблОценкиПредмети[Резултат],тблОценкиПредмети[Предмет],Изчисления!$C12,тблОценкиПредмети[Тип],Изчисления!AD$5)*Настройки!F15,\"\")","v":0.1425},{"$f":"IFERROR(AVERAGEIFS(тблОценкиПредмети[Резултат],тблОценкиПредмети[Предмет],Изчисления!$C12,тблОценкиПредмети[Тип],Изчисления!AE$5)*Настройки!G15,\"\")","v":""},{"$f":"IFERROR(AVERAGEIFS(тблОценкиПредмети[Резултат],тблОценкиПредмети[Предмет],Изчисления!$C12,тблОценкиПредмети[Тип],Изчисления!AF$5)*Настройки!H15,\"\")","v":""},{"$f":"IFERROR(AVERAGEIFS(тблОценкиПредмети[Резултат],тблОценкиПредмети[Предмет],Изчисления!$C12,тблОценкиПредмети[Тип],Изчисления!AG$5)*Настройки!I15,\"\")","v":""},{"$f":"IFERROR(AVERAGEIFS(тблОценкиПредмети[Резултат],тблОценкиПредмети[Предмет],Изчисления!$C12,тблОценкиПредмети[Тип],Изчисления!AH$5)*Настройки!J15,\"\")","v":""},{"$f":"IFERROR(AVERAGEIFS(тблОценкиПредмети[Резултат],тблОценкиПредмети[Предмет],Изчисления!$C12,тблОценкиПредмети[Тип],Изчисления!AI$5)*Настройки!K15,\"\")","v":""},0.1425,{"$f":"SUMIFS(Настройки!E15:K15,Изчисления!AC12:AI12,\">0\")","v":0.15},{"v":0.95,"d":"95%"},4,"A"]
[null,null,{"$f":"IF(Настройки!C16=\"\",\"\",Настройки!C16)","v":""},"","","","","","","","","","","","","","","","","","","","","","","","","",{"$f":"IFERROR(AVERAGEIFS(тблОценкиПредмети[Резултат],тблОценкиПредмети[Предмет],Изчисления!$C13,тблОценкиПредмети[Тип],Изчисления!AC$5)*Настройки!E16,\"\")","v":""},{"$f":"IFERROR(AVERAGEIFS(тблОценкиПредмети[Резултат],тблОценкиПредмети[Предмет],Изчисления!$C13,тблОценкиПредмети[Тип],Изчисления!AD$5)*Настройки!F16,\"\")","v":""},{"$f":"IFERROR(AVERAGEIFS(тблОценкиПредмети[Резултат],тблОценкиПредмети[Предмет],Изчисления!$C13,тблОценкиПредмети[Тип],Изчисления!AE$5)*Настройки!G16,\"\")","v":""},{"$f":"IFERROR(AVERAGEIFS(тблОценкиПредмети[Резултат],тблОценкиПредмети[Предмет],Изчисления!$C13,тблОценкиПредмети[Тип],Изчисления!AF$5)*Настройки!H16,\"\")","v":""},{"$f":"IFERROR(AVERAGEIFS(тблОценкиПредмети[Резултат],тблОценкиПредмети[Предмет],Изчисления!$C13,тблОценкиПредмети[Тип],Изчисления!AG$5)*Настройки!I16,\"\")","v":""},{"$f":"IFERROR(AVERAGEIFS(тблОценкиПредмети[Резултат],тблОценкиПредмети[Предмет],Изчисления!$C13,тблОценкиПредмети[Тип],Изчисления!AH$5)*Настройки!J16,\"\")","v":""},{"$f":"IFERROR(AVERAGEIFS(тблОценкиПредмети[Резултат],тблОценкиПредмети[Предмет],Изчисления!$C13,тблОценкиПредмети[Тип],Изчисления!AI$5)*Настройки!K16,\"\")","v":""},{"$f":"SUM(AC13:AI13)","v":0},{"$f":"SUMIFS(Настройки!E16:K16,Изчисления!AC13:AI13,\">0\")","v":0},{"$f":"IFERROR(AJ13/AK13,\"\")","v":""},"",""]
[null,null,{"$f":"IF(Настройки!C17=\"\",\"\",Настройки!C17)","v":""},"","","","","","","","","","","","","","","","","","","","","","","","","",{"$f":"IFERROR(AVERAGEIFS(тблОценкиПредмети[Резултат],тблОценкиПредмети[Предмет],Изчисления!$C14,тблОценкиПредмети[Тип],Изчисления!AC$5)*Настройки!E17,\"\")","v":""},{"$f":"IFERROR(AVERAGEIFS(тблОценкиПредмети[Резултат],тблОценкиПредмети[Предмет],Изчисления!$C14,тблОценкиПредмети[Тип],Изчисления!AD$5)*Настройки!F17,\"\")","v":""},{"$f":"IFERROR(AVERAGEIFS(тблОценкиПредмети[Резултат],тблОценкиПредмети[Предмет],Изчисления!$C14,тблОценкиПредмети[Тип],Изчисления!AE$5)*Настройки!G17,\"\")","v":""},{"$f":"IFERROR(AVERAGEIFS(тблОценкиПредмети[Резултат],тблОценкиПредмети[Предмет],Изчисления!$C14,тблОценкиПредмети[Тип],Изчисления!AF$5)*Настройки!H17,\"\")","v":""},{"$f":"IFERROR(AVERAGEIFS(тблОценкиПредмети[Резултат],тблОценкиПредмети[Предмет],Изчисления!$C14,тблОценкиПредмети[Тип],Изчисления!AG$5)*Настройки!I17,\"\")","v":""},{"$f":"IFERROR(AVERAGEIFS(тблОценкиПредмети[Резултат],тблОценкиПредмети[Предмет],Изчисления!$C14,тблОценкиПредмети[Тип],Изчисления!AH$5)*Настройки!J17,\"\")","v":""},{"$f":"IFERROR(AVERAGEIFS(тблОценкиПредмети[Резултат],тблОценкиПредмети[Предмет],Изчисления!$C14,тблОценкиПредмети[Тип],Изчисления!AI$5)*Настройки!K17,\"\")","v":""},0,{"$f":"SUMIFS(Настройки!E17:K17,Изчисления!AC14:AI14,\">0\")","v":0},"","",""]
[null,null,{"$f":"IF(Настройки!C18=\"\",\"\",Настройки!C18)","v":""},"","","","","","","","","","","","","","","","","","","","","","","","","",{"$f":"IFERROR(AVERAGEIFS(тблОценкиПредмети[Резултат],тблОценкиПредмети[Предмет],Изчисления!$C15,тблОценкиПредмети[Тип],Изчисления!AC$5)*Настройки!E18,\"\")","v":""},{"$f":"IFERROR(AVERAGEIFS(тблОценкиПредмети[Резултат],тблОценкиПредмети[Предмет],Изчисления!$C15,тблОценкиПредмети[Тип],Изчисления!AD$5)*Настройки!F18,\"\")","v":""},{"$f":"IFERROR(AVERAGEIFS(тблОценкиПредмети[Резултат],тблОценкиПредмети[Предмет],Изчисления!$C15,тблОценкиПредмети[Тип],Изчисления!AE$5)*Настройки!G18,\"\")","v":""},{"$f":"IFERROR(AVERAGEIFS(тблОценкиПредмети[Резултат],тблОценкиПредмети[Предмет],Изчисления!$C15,тблОценкиПредмети[Тип],Изчисления!AF$5)*Настройки!H18,\"\")","v":""},{"$f":"IFERROR(AVERAGEIFS(тблОценкиПредмети[Резултат],тблОценкиПредмети[Предмет],Изчисления!$C15,тблОценкиПредмети[Тип],Изчисления!AG$5)*Настройки!I18,\"\")","v":""},{"$f":"IFERROR(AVERAGEIFS(тблОценкиПредмети[Резултат],тблОценкиПредмети[Предмет],Изчисления!$C15,тблОценкиПредмети[Тип],Изчисления!AH$5)*Настройки!J18,\"\")","v":""},{"$f":"IFERROR(AVERAGEIFS(тблОценкиПредмети[Резултат],тблОценкиПредмети[Предмет],Изчисления!$C15,тблОценкиПредмети[Тип],Изчисления!AI$5)*Настройки!K18,\"\")","v":""},0,{"$f":"SUMIFS(Настройки!E18:K18,Изчисления!AC15:AI15,\">0\")","v":0},"","",""]
[null,null,{"$f":"IF(Настройки!C19=\"\",\"\",Настройки!C19)","v":""},"","","","","","","","","","","","","","","","","","","","","","","","","",{"$f":"IFERROR(AVERAGEIFS(тблОценкиПредмети[Резултат],тблОценкиПредмети[Предмет],Изчисления!$C16,тблОценкиПредмети[Тип],Изчисления!AC$5)*Настройки!E19,\"\")","v":""},{"$f":"IFERROR(AVERAGEIFS(тблОценкиПредмети[Резултат],тблОценкиПредмети[Предмет],Изчисления!$C16,тблОценкиПредмети[Тип],Изчисления!AD$5)*Настройки!F19,\"\")","v":""},{"$f":"IFERROR(AVERAGEIFS(тблОценкиПредмети[Резултат],тблОценкиПредмети[Предмет],Изчисления!$C16,тблОценкиПредмети[Тип],Изчисления!AE$5)*Настройки!G19,\"\")","v":""},{"$f":"IFERROR(AVERAGEIFS(тблОценкиПредмети[Резултат],тблОценкиПредмети[Предмет],Изчисления!$C16,тблОценкиПредмети[Тип],Изчисления!AF$5)*Настройки!H19,\"\")","v":""},{"$f":"IFERROR(AVERAGEIFS(тблОценкиПредмети[Резултат],тблОценкиПредмети[Предмет],Изчисления!$C16,тблОценкиПредмети[Тип],Изчисления!AG$5)*Настройки!I19,\"\")","v":""},{"$f":"IFERROR(AVERAGEIFS(тблОценкиПредмети[Резултат],тблОценкиПредмети[Предмет],Изчисления!$C16,тблОценкиПредмети[Тип],Изчисления!AH$5)*Настройки!J19,\"\")","v":""},{"$f":"IFERROR(AVERAGEIFS(тблОценкиПредмети[Резултат],тблОценкиПредмети[Предмет],Изчисления!$C16,тблОценкиПредмети[Тип],Изчисления!AI$5)*Настройки!K19,\"\")","v":""},0,{"$f":"SUMIFS(Настройки!E19:K19,Изчисления!AC16:AI16,\">0\")","v":0},"","",""]
[null,null,{"$f":"IF(Настройки!C20=\"\",\"\",Настройки!C20)","v":""},"","","","","","","","","","","","","","","","","","","","","","","","","",{"$f":"IFERROR(AVERAGEIFS(тблОценкиПредмети[Резултат],тблОценкиПредмети[Предмет],Изчисления!$C17,тблОценкиПредмети[Тип],Изчисления!AC$5)*Настройки!E20,\"\")","v":""},{"$f":"IFERROR(AVERAGEIFS(тблОценкиПредмети[Резултат],тблОценкиПредмети[Предмет],Изчисления!$C17,тблОценкиПредмети[Тип],Изчисления!AD$5)*Настройки!F20,\"\")","v":""},{"$f":"IFERROR(AVERAGEIFS(тблОценкиПредмети[Резултат],тблОценкиПредмети[Предмет],Изчисления!$C17,тблОценкиПредмети[Тип],Изчисления!AE$5)*Настройки!G20,\"\")","v":""},{"$f":"IFERROR(AVERAGEIFS(тблОценкиПредмети[Резултат],тблОценкиПредмети[Предмет],Изчисления!$C17,тблОценкиПредмети[Тип],Изчисления!AF$5)*Настройки!H20,\"\")","v":""},{"$f":"IFERROR(AVERAGEIFS(тблОценкиПредмети[Резултат],тблОценкиПредмети[Предмет],Изчисления!$C17,тблОценкиПредмети[Тип],Изчисления!AG$5)*Настройки!I20,\"\")","v":""},{"$f":"IFERROR(AVERAGEIFS(тблОценкиПредмети[Резултат],тблОценкиПредмети[Предмет],Изчисления!$C17,тблОценкиПредмети[Тип],Изчисления!AH$5)*Настройки!J20,\"\")","v":""},{"$f":"IFERROR(AVERAGEIFS(тблОценкиПредмети[Резултат],тблОценкиПредмети[Предмет],Изчисления!$C17,тблОценкиПредмети[Тип],Изчисления!AI$5)*Настройки!K20,\"\")","v":""},0,{"$f":"SUMIFS(Настройки!E20:K20,Изчисления!AC17:AI17,\">0\")","v":0},"","",""]
[null,null,{"$f":"IF(Настройки!C21=\"\",\"\",Настройки!C21)","v":""},"","","","","","","","","","","","","","","","","","","","","","","","","",{"$f":"IFERROR(AVERAGEIFS(тблОценкиПредмети[Резултат],тблОценкиПредмети[Предмет],Изчисления!$C18,тблОценкиПредмети[Тип],Изчисления!AC$5)*Настройки!E21,\"\")","v":""},{"$f":"IFERROR(AVERAGEIFS(тблОценкиПредмети[Резултат],тблОценкиПредмети[Предмет],Изчисления!$C18,тблОценкиПредмети[Тип],Изчисления!AD$5)*Настройки!F21,\"\")","v":""},{"$f":"IFERROR(AVERAGEIFS(тблОценкиПредмети[Резултат],тблОценкиПредмети[Предмет],Изчисления!$C18,тблОценкиПредмети[Тип],Изчисления!AE$5)*Настройки!G21,\"\")","v":""},{"$f":"IFERROR(AVERAGEIFS(тблОценкиПредмети[Резултат],тблОценкиПредмети[Предмет],Изчисления!$C18,тблОценкиПредмети[Тип],Изчисления!AF$5)*Настройки!H21,\"\")","v":""},{"$f":"IFERROR(AVERAGEIFS(тблОценкиПредмети[Резултат],тблОценкиПредмети[Предмет],Изчисления!$C18,тблОценкиПредмети[Тип],Изчисления!AG$5)*Настройки!I21,\"\")","v":""},{"$f":"IFERROR(AVERAGEIFS(тблОценкиПредмети[Резултат],тблОценкиПредмети[Предмет],Изчисления!$C18,тблОценкиПредмети[Тип],Изчисления!AH$5)*Настройки!J21,\"\")","v":""},{"$f":"IFERROR(AVERAGEIFS(тблОценкиПредмети[Резултат],тблОценкиПредмети[Предмет],Изчисления!$C18,тблОценкиПредмети[Тип],Изчисления!AI$5)*Настройки!K21,\"\")","v":""},0,{"$f":"SUMIFS(Настройки!E21:K21,Изчисления!AC18:AI18,\">0\")","v":0},"","",""]
[null,null,{"$f":"IF(Настройки!C22=\"\",\"\",Настройки!C22)","v":""},"","","","","","","","","","","","","","","","","","","","","","","","","",{"$f":"IFERROR(AVERAGEIFS(тблОценкиПредмети[Резултат],тблОценкиПредмети[Предмет],Изчисления!$C19,тблОценкиПредмети[Тип],Изчисления!AC$5)*Настройки!E22,\"\")","v":""},{"$f":"IFERROR(AVERAGEIFS(тблОценкиПредмети[Резултат],тблОценкиПредмети[Предмет],Изчисления!$C19,тблОценкиПредмети[Тип],Изчисления!AD$5)*Настройки!F22,\"\")","v":""},{"$f":"IFERROR(AVERAGEIFS(тблОценкиПредмети[Резултат],тблОценкиПредмети[Предмет],Изчисления!$C19,тблОценкиПредмети[Тип],Изчисления!AE$5)*Настройки!G22,\"\")","v":""},{"$f":"IFERROR(AVERAGEIFS(тблОценкиПредмети[Резултат],тблОценкиПредмети[Предмет],Изчисления!$C19,тблОценкиПредмети[Тип],Изчисления!AF$5)*Настройки!H22,\"\")","v":""},{"$f":"IFERROR(AVERAGEIFS(тблОценкиПредмети[Резултат],тблОценкиПредмети[Предмет],Изчисления!$C19,тблОценкиПредмети[Тип],Изчисления!AG$5)*Настройки!I22,\"\")","v":""},{"$f":"IFERROR(AVERAGEIFS(тблОценкиПредмети[Резултат],тблОценкиПредмети[Предмет],Изчисления!$C19,тблОценкиПредмети[Тип],Изчисления!AH$5)*Настройки!J22,\"\")","v":""},{"$f":"IFERROR(AVERAGEIFS(тблОценкиПредмети[Резултат],тблОценкиПредмети[Предмет],Изчисления!$C19,тблОценкиПредмети[Тип],Изчисления!AI$5)*Настройки!K22,\"\")","v":""},0,{"$f":"SUMIFS(Настройки!E22:K22,Изчисления!AC19:AI19,\">0\")","v":0},"","",""]
[null,null,{"$f":"IF(Настройки!C23=\"\",\"\",Настройки!C23)","v":""},"","","","","","","","","","","","","","","","","","","","","","","","","",{"$f":"IFERROR(AVERAGEIFS(тблОценкиПредмети[Резултат],тблОценкиПредмети[Предмет],Изчисления!$C20,тблОценкиПредмети[Тип],Изчисления!AC$5)*Настройки!E23,\"\")","v":""},{"$f":"IFERROR(AVERAGEIFS(тблОценкиПредмети[Резултат],тблОценкиПредмети[Предмет],Изчисления!$C20,тблОценкиПредмети[Тип],Изчисления!AD$5)*Настройки!F23,\"\")","v":""},{"$f":"IFERROR(AVERAGEIFS(тблОценкиПредмети[Резултат],тблОценкиПредмети[Предмет],Изчисления!$C20,тблОценкиПредмети[Тип],Изчисления!AE$5)*Настройки!G23,\"\")","v":""},{"$f":"IFERROR(AVERAGEIFS(тблОценкиПредмети[Резултат],тблОценкиПредмети[Предмет],Изчисления!$C20,тблОценкиПредмети[Тип],Изчисления!AF$5)*Настройки!H23,\"\")","v":""},{"$f":"IFERROR(AVERAGEIFS(тблОценкиПредмети[Резултат],тблОценкиПредмети[Предмет],Изчисления!$C20,тблОценкиПредмети[Тип],Изчисления!AG$5)*Настройки!I23,\"\")","v":""},{"$f":"IFERROR(AVERAGEIFS(тблОценкиПредмети[Резултат],тблОценкиПредмети[Предмет],Изчисления!$C20,тблОценкиПредмети[Тип],Изчисления!AH$5)*Настройки!J23,\"\")","v":""},{"$f":"IFERROR(AVERAGEIFS(тблОценкиПредмети[Резултат],тблОценкиПредмети[Предмет],Изчисления!$C20,тблОценкиПредмети[Тип],Изчисления!AI$5)*Настройки!K23,\"\")","v":""},0,{"$f":"SUMIFS(Настройки!E23:K23,Изчисления!AC20:AI20,\">0\")","v":0},"","",""]
[null,null,{"$f":"IF(Настройки!C24=\"\",\"\",Настройки!C24)","v":""},"","","","","","","","","","","","","","","","","","","","","","","","","",{"$f":"IFERROR(AVERAGEIFS(тблОценкиПредмети[Резултат],тблОценкиПредмети[Предмет],Изчисления!$C21,тблОценкиПредмети[Тип],Изчисления!AC$5)*Настройки!E24,\"\")","v":""},{"$f":"IFERROR(AVERAGEIFS(тблОценкиПредмети[Резултат],тблОценкиПредмети[Предмет],Изчисления!$C21,тблОценкиПредмети[Тип],Изчисления!AD$5)*Настройки!F24,\"\")","v":""},{"$f":"IFERROR(AVERAGEIFS(тблОценкиПредмети[Резултат],тблОценкиПредмети[Предмет],Изчисления!$C21,тблОценкиПредмети[Тип],Изчисления!AE$5)*Настройки!G24,\"\")","v":""},{"$f":"IFERROR(AVERAGEIFS(тблОценкиПредмети[Резултат],тблОценкиПредмети[Предмет],Изчисления!$C21,тблОценкиПредмети[Тип],Изчисления!AF$5)*Настройки!H24,\"\")","v":""},{"$f":"IFERROR(AVERAGEIFS(тблОценкиПредмети[Резултат],тблОценкиПредмети[Предмет],Изчисления!$C21,тблОценкиПредмети[Тип],Изчисления!AG$5)*Настройки!I24,\"\")","v":""},{"$f":"IFERROR(AVERAGEIFS(тблОценкиПредмети[Резултат],тблОценкиПредмети[Предмет],Изчисления!$C21,тблОценкиПредмети[Тип],Изчисления!AH$5)*Настройки!J24,\"\")","v":""},{"$f":"IFERROR(AVERAGEIFS(тблОценкиПредмети[Резултат],тблОценкиПредмети[Предмет],Изчисления!$C21,тблОценкиПредмети[Тип],Изчисления!AI$5)*Настройки!K24,\"\")","v":""},0,{"$f":"SUMIFS(Настройки!E24:K24,Изчисления!AC21:AI21,\">0\")","v":0},"","",""]
[null,null,{"$f":"IF(Настройки!C25=\"\",\"\",Настройки!C25)","v":""},"","","","","","","","","","","","","","","","","","","","","","","","","",{"$f":"IFERROR(AVERAGEIFS(тблОценкиПредмети[Резултат],тблОценкиПредмети[Предмет],Изчисления!$C22,тблОценкиПредмети[Тип],Изчисления!AC$5)*Настройки!E25,\"\")","v":""},{"$f":"IFERROR(AVERAGEIFS(тблОценкиПредмети[Резултат],тблОценкиПредмети[Предмет],Изчисления!$C22,тблОценкиПредмети[Тип],Изчисления!AD$5)*Настройки!F25,\"\")","v":""},{"$f":"IFERROR(AVERAGEIFS(тблОценкиПредмети[Резултат],тблОценкиПредмети[Предмет],Изчисления!$C22,тблОценкиПредмети[Тип],Изчисления!AE$5)*Настройки!G25,\"\")","v":""},{"$f":"IFERROR(AVERAGEIFS(тблОценкиПредмети[Резултат],тблОценкиПредмети[Предмет],Изчисления!$C22,тблОценкиПредмети[Тип],Изчисления!AF$5)*Настройки!H25,\"\")","v":""},{"$f":"IFERROR(AVERAGEIFS(тблОценкиПредмети[Резултат],тблОценкиПредмети[Предмет],Изчисления!$C22,тблОценкиПредмети[Тип],Изчисления!AG$5)*Настройки!I25,\"\")","v":""},{"$f":"IFERROR(AVERAGEIFS(тблОценкиПредмети[Резултат],тблОценкиПредмети[Предмет],Изчисления!$C22,тблОценкиПредмети[Тип],Изчисления!AH$5)*Настройки!J25,\"\")","v":""},{"$f":"IFERROR(AVERAGEIFS(тблОценкиПредмети[Резултат],тблОценкиПредмети[Предмет],Изчисления!$C22,тблОценкиПредмети[Тип],Изчисления!AI$5)*Настройки!K25,\"\")","v":""},0,{"$f":"SUMIFS(Настройки!E25:K25,Изчисления!AC22:AI22,\">0\")","v":0},"","",""]
[null,null,{"$f":"IF(Настройки!C26=\"\",\"\",Настройки!C26)","v":""},"","","","","","","","","","","","","","","","","","","","","","","","","",{"$f":"IFERROR(AVERAGEIFS(тблОценкиПредмети[Резултат],тблОценкиПредмети[Предмет],Изчисления!$C23,тблОценкиПредмети[Тип],Изчисления!AC$5)*Настройки!E26,\"\")","v":""},{"$f":"IFERROR(AVERAGEIFS(тблОценкиПредмети[Резултат],тблОценкиПредмети[Предмет],Изчисления!$C23,тблОценкиПредмети[Тип],Изчисления!AD$5)*Настройки!F26,\"\")","v":""},{"$f":"IFERROR(AVERAGEIFS(тблОценкиПредмети[Резултат],тблОценкиПредмети[Предмет],Изчисления!$C23,тблОценкиПредмети[Тип],Изчисления!AE$5)*Настройки!G26,\"\")","v":""},{"$f":"IFERROR(AVERAGEIFS(тблОценкиПредмети[Резултат],тблОценкиПредмети[Предмет],Изчисления!$C23,тблОценкиПредмети[Тип],Изчисления!AF$5)*Настройки!H26,\"\")","v":""},{"$f":"IFERROR(AVERAGEIFS(тблОценкиПредмети[Резултат],тблОценкиПредмети[Предмет],Изчисления!$C23,тблОценкиПредмети[Тип],Изчисления!AG$5)*Настройки!I26,\"\")","v":""},{"$f":"IFERROR(AVERAGEIFS(тблОценкиПредмети[Резултат],тблОценкиПредмети[Предмет],Изчисления!$C23,тблОценкиПредмети[Тип],Изчисления!AH$5)*Настройки!J26,\"\")","v":""},{"$f":"IFERROR(AVERAGEIFS(тблОценкиПредмети[Резултат],тблОценкиПредмети[Предмет],Изчисления!$C23,тблОценкиПредмети[Тип],Изчисления!AI$5)*Настройки!K26,\"\")","v":""},0,{"$f":"SUMIFS(Настройки!E26:K26,Изчисления!AC23:AI23,\">0\")","v":0},"","",""]
[null,null,{"$f":"IF(Настройки!C27=\"\",\"\",Настройки!C27)","v":""},"","","","","","","","","","","","","","","","","","","","","","","","","",{"$f":"IFERROR(AVERAGEIFS(тблОценкиПредмети[Резултат],тблОценкиПредмети[Предмет],Изчисления!$C24,тблОценкиПредмети[Тип],Изчисления!AC$5)*Настройки!E27,\"\")","v":""},{"$f":"IFERROR(AVERAGEIFS(тблОценкиПредмети[Резултат],тблОценкиПредмети[Предмет],Изчисления!$C24,тблОценкиПредмети[Тип],Изчисления!AD$5)*Настройки!F27,\"\")","v":""},{"$f":"IFERROR(AVERAGEIFS(тблОценкиПредмети[Резултат],тблОценкиПредмети[Предмет],Изчисления!$C24,тблОценкиПредмети[Тип],Изчисления!AE$5)*Настройки!G27,\"\")","v":""},{"$f":"IFERROR(AVERAGEIFS(тблОценкиПредмети[Резултат],тблОценкиПредмети[Предмет],Изчисления!$C24,тблОценкиПредмети[Тип],Изчисления!AF$5)*Настройки!H27,\"\")","v":""},{"$f":"IFERROR(AVERAGEIFS(тблОценкиПредмети[Резултат],тблОценкиПредмети[Предмет],Изчисления!$C24,тблОценкиПредмети[Тип],Изчисления!AG$5)*Настройки!I27,\"\")","v":""},{"$f":"IFERROR(AVERAGEIFS(тблОценкиПредмети[Резултат],тблОценкиПредмети[Предмет],Изчисления!$C24,тблОценкиПредмети[Тип],Изчисления!AH$5)*Настройки!J27,\"\")","v":""},{"$f":"IFERROR(AVERAGEIFS(тблОценкиПредмети[Резултат],тблОценкиПредмети[Предмет],Изчисления!$C24,тблОценкиПредмети[Тип],Изчисления!AI$5)*Настройки!K27,\"\")","v":""},0,{"$f":"SUMIFS(Настройки!E27:K27,Изчисления!AC24:AI24,\">0\")","v":0},"","",""]
[null,null,{"$f":"IF(Настройки!C28=\"\",\"\",Настройки!C28)","v":""},"","","","","","","","","","","","","","","","","","","","","","","","","",{"$f":"IFERROR(AVERAGEIFS(тблОценкиПредмети[Резултат],тблОценкиПредмети[Предмет],Изчисления!$C25,тблОценкиПредмети[Тип],Изчисления!AC$5)*Настройки!E28,\"\")","v":""},{"$f":"IFERROR(AVERAGEIFS(тблОценкиПредмети[Резултат],тблОценкиПредмети[Предмет],Изчисления!$C25,тблОценкиПредмети[Тип],Изчисления!AD$5)*Настройки!F28,\"\")","v":""},{"$f":"IFERROR(AVERAGEIFS(тблОценкиПредмети[Резултат],тблОценкиПредмети[Предмет],Изчисления!$C25,тблОценкиПредмети[Тип],Изчисления!AE$5)*Настройки!G28,\"\")","v":""},{"$f":"IFERROR(AVERAGEIFS(тблОценкиПредмети[Резултат],тблОценкиПредмети[Предмет],Изчисления!$C25,тблОценкиПредмети[Тип],Изчисления!AF$5)*Настройки!H28,\"\")","v":""},{"$f":"IFERROR(AVERAGEIFS(тблОценкиПредмети[Резултат],тблОценкиПредмети[Предмет],Изчисления!$C25,тблОценкиПредмети[Тип],Изчисления!AG$5)*Настройки!I28,\"\")","v":""},{"$f":"IFERROR(AVERAGEIFS(тблОценкиПредмети[Резултат],тблОценкиПредмети[Предмет],Изчисления!$C25,тблОценкиПредмети[Тип],Изчисления!AH$5)*Настройки!J28,\"\")","v":""},{"$f":"IFERROR(AVERAGEIFS(тблОценкиПредмети[Резултат],тблОценкиПредмети[Предмет],Изчисления!$C25,тблОценкиПредмети[Тип],Изчисления!AI$5)*Настройки!K28,\"\")","v":""},0,{"$f":"SUMIFS(Настройки!E28:K28,Изчисления!AC25:AI25,\">0\")","v":0},"","",""]
[null,null,{"$f":"IF(Настройки!C29=\"\",\"\",Настройки!C29)","v":""},"","","","","","","","","","","","","","","","","","","","","","","","","",{"$f":"IFERROR(AVERAGEIFS(тблОценкиПредмети[Резултат],тблОценкиПредмети[Предмет],Изчисления!$C26,тблОценкиПредмети[Тип],Изчисления!AC$5)*Настройки!E29,\"\")","v":""},{"$f":"IFERROR(AVERAGEIFS(тблОценкиПредмети[Резултат],тблОценкиПредмети[Предмет],Изчисления!$C26,тблОценкиПредмети[Тип],Изчисления!AD$5)*Настройки!F29,\"\")","v":""},{"$f":"IFERROR(AVERAGEIFS(тблОценкиПредмети[Резултат],тблОценкиПредмети[Предмет],Изчисления!$C26,тблОценкиПредмети[Тип],Изчисления!AE$5)*Настройки!G29,\"\")","v":""},{"$f":"IFERROR(AVERAGEIFS(тблОценкиПредмети[Резултат],тблОценкиПредмети[Предмет],Изчисления!$C26,тблОценкиПредмети[Тип],Изчисления!AF$5)*Настройки!H29,\"\")","v":""},{"$f":"IFERROR(AVERAGEIFS(тблОценкиПредмети[Резултат],тблОценкиПредмети[Предмет],Изчисления!$C26,тблОценкиПредмети[Тип],Изчисления!AG$5)*Настройки!I29,\"\")","v":""},{"$f":"IFERROR(AVERAGEIFS(тблОценкиПредмети[Резултат],тблОценкиПредмети[Предмет],Изчисления!$C26,тблОценкиПредмети[Тип],Изчисления!AH$5)*Настройки!J29,\"\")","v":""},{"$f":"IFERROR(AVERAGEIFS(тблОценкиПредмети[Резултат],тблОценкиПредмети[Предмет],Изчисления!$C26,тблОценкиПредмети[Тип],Изчисления!AI$5)*Настройки!K29,\"\")","v":""},0,{"$f":"SUMIFS(Настройки!E29:K29,Изчисления!AC26:AI26,\">0\")","v":0},"","",""]
[null,null,{"$f":"IF(Настройки!C30=\"\",\"\",Настройки!C30)","v":""},"","","","","","","","","","","","","","","","","","","","","","","","","",{"$f":"IFERROR(AVERAGEIFS(тблОценкиПредмети[Резултат],тблОценкиПредмети[Предмет],Изчисления!$C27,тблОценкиПредмети[Тип],Изчисления!AC$5)*Настройки!E30,\"\")","v":""},{"$f":"IFERROR(AVERAGEIFS(тблОценкиПредмети[Резултат],тблОценкиПредмети[Предмет],Изчисления!$C27,тблОценкиПредмети[Тип],Изчисления!AD$5)*Настройки!F30,\"\")","v":""},{"$f":"IFERROR(AVERAGEIFS(тблОценкиПредмети[Резултат],тблОценкиПредмети[Предмет],Изчисления!$C27,тблОценкиПредмети[Тип],Изчисления!AE$5)*Настройки!G30,\"\")","v":""},{"$f":"IFERROR(AVERAGEIFS(тблОценкиПредмети[Резултат],тблОценкиПредмети[Предмет],Изчисления!$C27,тблОценкиПредмети[Тип],Изчисления!AF$5)*Настройки!H30,\"\")","v":""},{"$f":"IFERROR(AVERAGEIFS(тблОценкиПредмети[Резултат],тблОценкиПредмети[Предмет],Изчисления!$C27,тблОценкиПредмети[Тип],Изчисления!AG$5)*Настройки!I30,\"\")","v":""},{"$f":"IFERROR(AVERAGEIFS(тблОценкиПредмети[Резултат],тблОценкиПредмети[Предмет],Изчисления!$C27,тблОценкиПредмети[Тип],Изчисления!AH$5)*Настройки!J30,\"\")","v":""},{"$f":"IFERROR(AVERAGEIFS(тблОценкиПредмети[Резултат],тблОценкиПредмети[Предмет],Изчисления!$C27,тблОценкиПредмети[Тип],Изчисления!AI$5)*Настройки!K30,\"\")","v":""},0,{"$f":"SUMIFS(Настройки!E30:K30,Изчисления!AC27:AI27,\">0\")","v":0},"","",""]
[null,null,{"$f":"IF(Настройки!C31=\"\",\"\",Настройки!C31)","v":""},"","","","","","","","","","","","","","","","","","","","","","","","","",{"$f":"IFERROR(AVERAGEIFS(тблОценкиПредмети[Резултат],тблОценкиПредмети[Предмет],Изчисления!$C28,тблОценкиПредмети[Тип],Изчисления!AC$5)*Настройки!E31,\"\")","v":""},{"$f":"IFERROR(AVERAGEIFS(тблОценкиПредмети[Резултат],тблОценкиПредмети[Предмет],Изчисления!$C28,тблОценкиПредмети[Тип],Изчисления!AD$5)*Настройки!F31,\"\")","v":""},{"$f":"IFERROR(AVERAGEIFS(тблОценкиПредмети[Резултат],тблОценкиПредмети[Предмет],Изчисления!$C28,тблОценкиПредмети[Тип],Изчисления!AE$5)*Настройки!G31,\"\")","v":""},{"$f":"IFERROR(AVERAGEIFS(тблОценкиПредмети[Резултат],тблОценкиПредмети[Предмет],Изчисления!$C28,тблОценкиПредмети[Тип],Изчисления!AF$5)*Настройки!H31,\"\")","v":""},{"$f":"IFERROR(AVERAGEIFS(тблОценкиПредмети[Резултат],тблОценкиПредмети[Предмет],Изчисления!$C28,тблОценкиПредмети[Тип],Изчисления!AG$5)*Настройки!I31,\"\")","v":""},{"$f":"IFERROR(AVERAGEIFS(тблОценкиПредмети[Резултат],тблОценкиПредмети[Предмет],Изчисления!$C28,тблОценкиПредмети[Тип],Изчисления!AH$5)*Настройки!J31,\"\")","v":""},{"$f":"IFERROR(AVERAGEIFS(тблОценкиПредмети[Резултат],тблОценкиПредмети[Предмет],Изчисления!$C28,тблОценкиПредмети[Тип],Изчисления!AI$5)*Настройки!K31,\"\")","v":""},0,{"$f":"SUMIFS(Настройки!E31:K31,Изчисления!AC28:AI28,\">0\")","v":0},"","",""]
[null,null,{"$f":"IF(Настройки!C32=\"\",\"\",Настройки!C32)","v":""},"","","","","","","","","","","","","","","","","","","","","","","","","",{"$f":"IFERROR(AVERAGEIFS(тблОценкиПредмети[Резултат],тблОценкиПредмети[Предмет],Изчисления!$C29,тблОценкиПредмети[Тип],Изчисления!AC$5)*Настройки!E32,\"\")","v":""},{"$f":"IFERROR(AVERAGEIFS(тблОценкиПредмети[Резултат],тблОценкиПредмети[Предмет],Изчисления!$C29,тблОценкиПредмети[Тип],Изчисления!AD$5)*Настройки!F32,\"\")","v":""},{"$f":"IFERROR(AVERAGEIFS(тблОценкиПредмети[Резултат],тблОценкиПредмети[Предмет],Изчисления!$C29,тблОценкиПредмети[Тип],Изчисления!AE$5)*Настройки!G32,\"\")","v":""},{"$f":"IFERROR(AVERAGEIFS(тблОценкиПредмети[Резултат],тблОценкиПредмети[Предмет],Изчисления!$C29,тблОценкиПредмети[Тип],Изчисления!AF$5)*Настройки!H32,\"\")","v":""},{"$f":"IFERROR(AVERAGEIFS(тблОценкиПредмети[Резултат],тблОценкиПредмети[Предмет],Изчисления!$C29,тблОценкиПредмети[Тип],Изчисления!AG$5)*Настройки!I32,\"\")","v":""},{"$f":"IFERROR(AVERAGEIFS(тблОценкиПредмети[Резултат],тблОценкиПредмети[Предмет],Изчисления!$C29,тблОценкиПредмети[Тип],Изчисления!AH$5)*Настройки!J32,\"\")","v":""},{"$f":"IFERROR(AVERAGEIFS(тблОценкиПредмети[Резултат],тблОценкиПредмети[Предмет],Изчисления!$C29,тблОценкиПредмети[Тип],Изчисления!AI$5)*Настройки!K32,\"\")","v":""},0,{"$f":"SUMIFS(Настройки!E32:K32,Изчисления!AC29:AI29,\">0\")","v":0},"","",""]
[null,null,{"$f":"IF(Настройки!C33=\"\",\"\",Настройки!C33)","v":""},"","","","","","","","","","","","","","","","","","","","","","","","","",{"$f":"IFERROR(AVERAGEIFS(тблОценкиПредмети[Резултат],тблОценкиПредмети[Предмет],Изчисления!$C30,тблОценкиПредмети[Тип],Изчисления!AC$5)*Настройки!E33,\"\")","v":""},{"$f":"IFERROR(AVERAGEIFS(тблОценкиПредмети[Резултат],тблОценкиПредмети[Предмет],Изчисления!$C30,тблОценкиПредмети[Тип],Изчисления!AD$5)*Настройки!F33,\"\")","v":""},{"$f":"IFERROR(AVERAGEIFS(тблОценкиПредмети[Резултат],тблОценкиПредмети[Предмет],Изчисления!$C30,тблОценкиПредмети[Тип],Изчисления!AE$5)*Настройки!G33,\"\")","v":""},{"$f":"IFERROR(AVERAGEIFS(тблОценкиПредмети[Резултат],тблОценкиПредмети[Предмет],Изчисления!$C30,тблОценкиПредмети[Тип],Изчисления!AF$5)*Настройки!H33,\"\")","v":""},{"$f":"IFERROR(AVERAGEIFS(тблОценкиПредмети[Резултат],тблОценкиПредмети[Предмет],Изчисления!$C30,тблОценкиПредмети[Тип],Изчисления!AG$5)*Настройки!I33,\"\")","v":""},{"$f":"IFERROR(AVERAGEIFS(тблОценкиПредмети[Резултат],тблОценкиПредмети[Предмет],Изчисления!$C30,тблОценкиПредмети[Тип],Изчисления!AH$5)*Настройки!J33,\"\")","v":""},{"$f":"IFERROR(AVERAGEIFS(тблОценкиПредмети[Резултат],тблОценкиПредмети[Предмет],Изчисления!$C30,тблОценкиПредмети[Тип],Изчисления!AI$5)*Настройки!K33,\"\")","v":""},0,{"$f":"SUMIFS(Настройки!E33:K33,Изчисления!AC30:AI30,\">0\")","v":0},"","",""]
[]
[]
[null,1,{"$f":"'Следене на оценките'!C4&COUNTIF('Следене на оценките'!$C$4:C4,'Следене на оценките'!C4)","v":"Френски1"}]
[null,2,{"$f":"'Следене на оценките'!C5&COUNTIF('Следене на оценките'!$C$4:C5,'Следене на оценките'!C5)","v":"Разширено програмиране на Java1"}]
[null,3,{"$f":"'Следене на оценките'!C6&COUNTIF('Следене на оценките'!$C$4:C6,'Следене на оценките'!C6)","v":"Испански1"}]
[null,4,{"$f":"'Следене на оценките'!C7&COUNTIF('Следене на оценките'!$C$4:C7,'Следене на оценките'!C7)","v":"Теоретична физика1"}]
[null,5,{"$f":"'Следене на оценките'!C8&COUNTIF('Следене на оценките'!$C$4:C8,'Следене на оценките'!C8)","v":"Френски2"}]
[null,6,{"$f":"'Следене на оценките'!C9&COUNTIF('Следене на оценките'!$C$4:C9,'Следене на оценките'!C9)","v":"Френски3"}]
[null,7,{"$f":"'Следене на оценките'!C10&COUNTIF('Следене на оценките'!$C$4:C10,'Следене на оценките'!C10)","v":"Съчинение1"}]
[null,8,{"$f":"'Следене на оценките'!C11&COUNTIF('Следене на оценките'!$C$4:C11,'Следене на оценките'!C11)","v":"Математика 11"}]
[null,9,{"$f":"'Следене на оценките'!C12&COUNTIF('Следене на оценките'!$C$4:C12,'Следене на оценките'!C12)","v":"Математика 21"}]
[null,10,{"$f":"'Следене на оценките'!C13&COUNTIF('Следене на оценките'!$C$4:C14,'Следене на оценките'!C13)","v":"Математика 12"}]
[null,11,{"$f":"'Следене на оценките'!C14&COUNTIF('Следене на оценките'!$C$4:C14,'Следене на оценките'!C14)","v":"Математика 22"}]
[null,12,{"$f":"'Следене на оценките'!C15&COUNTIF('Следене на оценките'!$C$4:C15,'Следене на оценките'!C15)","v":"0"}]
[null,13,{"$f":"'Следене на оценките'!C16&COUNTIF('Следене на оценките'!$C$4:C16,'Следене на оценките'!C16)","v":"0"}]
[null,14,{"$f":"'Следене на оценките'!C17&COUNTIF('Следене на оценките'!$C$4:C17,'Следене на оценките'!C17)","v":"0"}]
[null,15,{"$f":"'Следене на оценките'!C18&COUNTIF('Следене на оценките'!$C$4:C18,'Следене на оценките'!C18)","v":"0"}]
[null,16,{"$f":"'Следене на оценките'!C19&COUNTIF('Следене на оценките'!$C$4:C19,'Следене на оценките'!C19)","v":"0"}]
[null,17,{"$f":"'Следене на оценките'!C20&COUNTIF('Следене на оценките'!$C$4:C20,'Следене на оценките'!C20)","v":"0"}]
[null,18,{"$f":"'Следене на оценките'!C21&COUNTIF('Следене на оценките'!$C$4:C21,'Следене на оценките'!C21)","v":"0"}]
[null,19,{"$f":"'Следене на оценките'!C22&COUNTIF('Следене на оценките'!$C$4:C22,'Следене на оценките'!C22)","v":"0"}]
[null,20,{"$f":"'Следене на оценките'!C23&COUNTIF('Следене на оценките'!$C$4:C23,'Следене на оценките'!C23)","v":"0"}]
[null,21,{"$f":"'Следене на оценките'!C24&COUNTIF('Следене на оценките'!$C$4:C24,'Следене на оценките'!C24)","v":"0"}]
[null,22,{"$f":"'Следене на оценките'!C25&COUNTIF('Следене на оценките'!$C$4:C25,'Следене на оценките'!C25)","v":"0"}]
[null,23,{"$f":"'Следене на оценките'!C26&COUNTIF('Следене на оценките'!$C$4:C26,'Следене на оценките'!C26)","v":"0"}]
[null,24,{"$f":"'Следене на оценките'!C27&COUNTIF('Следене на оценките'!$C$4:C27,'Следене на оценките'!C27)","v":"0"}]
[null,25,{"$f":"'Следене на оценките'!C28&COUNTIF('Следене на оценките'!$C$4:C28,'Следене на оценките'!C28)","v":"0"}]
[null,26,{"$f":"'Следене на оценките'!C29&COUNTIF('Следене на оценките'!$C$4:C29,'Следене на оценките'!C29)","v":"0"}]
[null,27,{"$f":"'Следене на оценките'!C30&COUNTIF('Следене на оценките'!$C$4:C30,'Следене на оценките'!C30)","v":"0"}]
[null,28,{"$f":"'Следене на оценките'!C31&COUNTIF('Следене на оценките'!$C$4:C31,'Следене на оценките'!C31)","v":"0"}]
[null,29,{"$f":"'Следене на оценките'!C32&COUNTIF('Следене на оценките'!$C$4:C32,'Следене на оценките'!C32)","v":"0"}]
[null,30,{"$f":"'Следене на оценките'!C33&COUNTIF('Следене на оценките'!$C$4:C33,'Следене на оценките'!C33)","v":"0"}]
[null,31,{"$f":"'Следене на оценките'!C34&COUNTIF('Следене на оценките'!$C$4:C34,'Следене на оценките'!C34)","v":"0"}]
[null,32,{"$f":"'Следене на оценките'!C35&COUNTIF('Следене на оценките'!$C$4:C35,'Следене на оценките'!C35)","v":"0"}]
[null,33,{"$f":"'Следене на оценките'!C36&COUNTIF('Следене на оценките'!$C$4:C36,'Следене на оценките'!C36)","v":"0"}]
[null,34,{"$f":"'Следене на оценките'!C37&COUNTIF('Следене на оценките'!$C$4:C37,'Следене на оценките'!C37)","v":"0"}]
[null,35,{"$f":"'Следене на оценките'!C38&COUNTIF('Следене на оценките'!$C$4:C38,'Следене на оценките'!C38)","v":"0"}]
[null,36,{"$f":"'Следене на оценките'!C39&COUNTIF('Следене на оценките'!$C$4:C39,'Следене на оценките'!C39)","v":"0"}]
[null,37,{"$f":"'Следене на оценките'!C40&COUNTIF('Следене на оценките'!$C$4:C40,'Следене на оценките'!C40)","v":"0"}]
[null,38,{"$f":"'Следене на оценките'!C41&COUNTIF('Следене на оценките'!$C$4:C41,'Следене на оценките'!C41)","v":"0"}]
[null,39,{"$f":"'Следене на оценките'!C42&COUNTIF('Следене на оценките'!$C$4:C42,'Следене на оценките'!C42)","v":"0"}]
[null,40,{"$f":"'Следене на оценките'!C43&COUNTIF('Следене на оценките'!$C$4:C43,'Следене на оценките'!C43)","v":"0"}]
[null,41,{"$f":"'Следене на оценките'!C44&COUNTIF('Следене на оценките'!$C$4:C44,'Следене на оценките'!C44)","v":"0"}]
[null,42,{"$f":"'Следене на оценките'!C45&COUNTIF('Следене на оценките'!$C$4:C45,'Следене на оценките'!C45)","v":"0"}]
[null,43,{"$f":"'Следене на оценките'!C46&COUNTIF('Следене на оценките'!$C$4:C46,'Следене на оценките'!C46)","v":"0"}]
[null,44,{"$f":"'Следене на оценките'!C47&COUNTIF('Следене на оценките'!$C$4:C47,'Следене на оценките'!C47)","v":"0"}]
[null,45,{"$f":"'Следене на оценките'!C48&COUNTIF('Следене на оценките'!$C$4:C48,'Следене на оценките'!C48)","v":"0"}]
[null,46,{"$f":"'Следене на оценките'!C49&COUNTIF('Следене на оценките'!$C$4:C49,'Следене на оценките'!C49)","v":"0"}]
[null,47,{"$f":"'Следене на оценките'!C50&COUNTIF('Следене на оценките'!$C$4:C50,'Следене на оценките'!C50)","v":"0"}]
[null,48,{"$f":"'Следене на оценките'!C51&COUNTIF('Следене на оценките'!$C$4:C51,'Следене на оценките'!C51)","v":"0"}]
[null,49,{"$f":"'Следене на оценките'!C52&COUNTIF('Следене на оценките'!$C$4:C52,'Следене на оценките'!C52)","v":"0"}]
[null,50,{"$f":"'Следене на оценките'!C53&COUNTIF('Следене на оценките'!$C$4:C53,'Следене на оценките'!C53)","v":"0"}]
[null,51,{"$f":"'Следене на оценките'!C54&COUNTIF('Следене на оценките'!$C$4:C54,'Следене на оценките'!C54)","v":"0"}]
[null,52,{"$f":"'Следене на оценките'!C55&COUNTIF('Следене на оценките'!$C$4:C55,'Следене на оценките'!C55)","v":"0"}]
[null,53,{"$f":"'Следене на оценките'!C56&COUNTIF('Следене на оценките'!$C$4:C56,'Следене на оценките'!C56)","v":"0"}]
[null,54,{"$f":"'Следене на оценките'!C57&COUNTIF('Следене на оценките'!$C$4:C57,'Следене на оценките'!C57)","v":"0"}]
[null,55,{"$f":"'Следене на оценките'!C58&COUNTIF('Следене на оценките'!$C$4:C58,'Следене на оценките'!C58)","v":"0"}]
[null,56,{"$f":"'Следене на оценките'!C59&COUNTIF('Следене на оценките'!$C$4:C59,'Следене на оценките'!C59)","v":"0"}]
[null,57,{"$f":"'Следене на оценките'!C60&COUNTIF('Следене на оценките'!$C$4:C60,'Следене на оценките'!C60)","v":"0"}]
[null,58,{"$f":"'Следене на оценките'!C61&COUNTIF('Следене на оценките'!$C$4:C61,'Следене на оценките'!C61)","v":"0"}]
[null,59,{"$f":"'Следене на оценките'!C62&COUNTIF('Следене на оценките'!$C$4:C62,'Следене на оценките'!C62)","v":"0"}]
[null,60,{"$f":"'Следене на оценките'!C63&COUNTIF('Следене на оценките'!$C$4:C63,'Следене на оценките'!C63)","v":"0"}]
[null,61,{"$f":"'Следене на оценките'!C64&COUNTIF('Следене на оценките'!$C$4:C64,'Следене на оценките'!C64)","v":"0"}]
[null,62,{"$f":"'Следене на оценките'!C65&COUNTIF('Следене на оценките'!$C$4:C65,'Следене на оценките'!C65)","v":"0"}]
[null,63,{"$f":"'Следене на оценките'!C66&COUNTIF('Следене на оценките'!$C$4:C66,'Следене на оценките'!C66)","v":"0"}]
[null,64,{"$f":"'Следене на оценките'!C67&COUNTIF('Следене на оценките'!$C$4:C67,'Следене на оценките'!C67)","v":"0"}]
[null,65,{"$f":"'Следене на оценките'!C68&COUNTIF('Следене на оценките'!$C$4:C68,'Следене на оценките'!C68)","v":"0"}]
[null,66,{"$f":"'Следене на оценките'!C69&COUNTIF('Следене на оценките'!$C$4:C69,'Следене на оценките'!C69)","v":"0"}]
[null,67,{"$f":"'Следене на оценките'!C70&COUNTIF('Следене на оценките'!$C$4:C70,'Следене на оценките'!C70)","v":"0"}]
[null,68,{"$f":"'Следене на оценките'!C71&COUNTIF('Следене на оценките'!$C$4:C71,'Следене на оценките'!C71)","v":"0"}]
[null,69,{"$f":"'Следене на оценките'!C72&COUNTIF('Следене на оценките'!$C$4:C72,'Следене на оценките'!C72)","v":"0"}]
[null,70,{"$f":"'Следене на оценките'!C73&COUNTIF('Следене на оценките'!$C$4:C73,'Следене на оценките'!C73)","v":"0"}]
[null,71,{"$f":"'Следене на оценките'!C74&COUNTIF('Следене на оценките'!$C$4:C74,'Следене на оценките'!C74)","v":"0"}]
[null,72,{"$f":"'Следене на оценките'!C75&COUNTIF('Следене на оценките'!$C$4:C75,'Следене на оценките'!C75)","v":"0"}]
[null,73,{"$f":"'Следене на оценките'!C76&COUNTIF('Следене на оценките'!$C$4:C76,'Следене на оценките'!C76)","v":"0"}]
[null,74,{"$f":"'Следене на оценките'!C77&COUNTIF('Следене на оценките'!$C$4:C77,'Следене на оценките'!C77)","v":"0"}]
[null,75,{"$f":"'Следене на оценките'!C78&COUNTIF('Следене на оценките'!$C$4:C78,'Следене на оценките'!C78)","v":"0"}]
[null,76,{"$f":"'Следене на оценките'!C79&COUNTIF('Следене на оценките'!$C$4:C79,'Следене на оценките'!C79)","v":"0"}]
[null,77,{"$f":"'Следене на оценките'!C80&COUNTIF('Следене на оценките'!$C$4:C80,'Следене на оценките'!C80)","v":"0"}]
[null,78,{"$f":"'Следене на оценките'!C81&COUNTIF('Следене на оценките'!$C$4:C81,'Следене на оценките'!C81)","v":"0"}]
[null,79,{"$f":"'Следене на оценките'!C82&COUNTIF('Следене на оценките'!$C$4:C82,'Следене на оценките'!C82)","v":"0"}]
[null,80,{"$f":"'Следене на оценките'!C83&COUNTIF('Следене на оценките'!$C$4:C83,'Следене на оценките'!C83)","v":"0"}]
[null,81,{"$f":"'Следене на оценките'!C84&COUNTIF('Следене на оценките'!$C$4:C84,'Следене на оценките'!C84)","v":"0"}]
[null,82,{"$f":"'Следене на оценките'!C85&COUNTIF('Следене на оценките'!$C$4:C85,'Следене на оценките'!C85)","v":"0"}]
[null,83,{"$f":"'Следене на оценките'!C86&COUNTIF('Следене на оценките'!$C$4:C86,'Следене на оценките'!C86)","v":"0"}]
[null,84,{"$f":"'Следене на оценките'!C87&COUNTIF('Следене на оценките'!$C$4:C87,'Следене на оценките'!C87)","v":"0"}]
[null,85,{"$f":"'Следене на оценките'!C88&COUNTIF('Следене на оценките'!$C$4:C88,'Следене на оценките'!C88)","v":"0"}]
[null,86,{"$f":"'Следене на оценките'!C89&COUNTIF('Следене на оценките'!$C$4:C89,'Следене на оценките'!C89)","v":"0"}]
[null,87,{"$f":"'Следене на оценките'!C90&COUNTIF('Следене на оценките'!$C$4:C90,'Следене на оценките'!C90)","v":"0"}]
[null,88,{"$f":"'Следене на оценките'!C91&COUNTIF('Следене на оценките'!$C$4:C91,'Следене на оценките'!C91)","v":"0"}]
[null,89,{"$f":"'Следене на оценките'!C92&COUNTIF('Следене на оценките'!$C$4:C92,'Следене на оценките'!C92)","v":"0"}]
[null,90,{"$f":"'Следене на оценките'!C93&COUNTIF('Следене на оценките'!$C$4:C93,'Следене на оценките'!C93)","v":"0"}]
[null,91,{"$f":"'Следене на оценките'!C94&COUNTIF('Следене на оценките'!$C$4:C94,'Следене на оценките'!C94)","v":"0"}]
[null,92,{"$f":"'Следене на оценките'!C95&COUNTIF('Следене на оценките'!$C$4:C95,'Следене на оценките'!C95)","v":"0"}]
[null,93,{"$f":"'Следене на оценките'!C96&COUNTIF('Следене на оценките'!$C$4:C96,'Следене на оценките'!C96)","v":"0"}]
[null,94,{"$f":"'Следене на оценките'!C97&COUNTIF('Следене на оценките'!$C$4:C97,'Следене на оценките'!C97)","v":"0"}]
[null,95,{"$f":"'Следене на оценките'!C98&COUNTIF('Следене на оценките'!$C$4:C98,'Следене на оценките'!C98)","v":"0"}]
[null,96,{"$f":"'Следене на оценките'!C99&COUNTIF('Следене на оценките'!$C$4:C99,'Следене на оценките'!C99)","v":"0"}]
[null,97,{"$f":"'Следене на оценките'!C100&COUNTIF('Следене на оценките'!$C$4:C100,'Следене на оценките'!C100)","v":"0"}]
[null,98,{"$f":"'Следене на оценките'!C101&COUNTIF('Следене на оценките'!$C$4:C101,'Следене на оценките'!C101)","v":"0"}]
[null,99,{"$f":"'Следене на оценките'!C102&COUNTIF('Следене на оценките'!$C$4:C102,'Следене на оценките'!C102)","v":"0"}]
[null,100,{"$f":"'Следене на оценките'!C103&COUNTIF('Следене на оценките'!$C$4:C103,'Следене на оценките'!C103)","v":"0"}]
[null,101,{"$f":"'Следене на оценките'!C104&COUNTIF('Следене на оценките'!$C$4:C104,'Следене на оценките'!C104)","v":"0"}]
[null,102,{"$f":"'Следене на оценките'!C105&COUNTIF('Следене на оценките'!$C$4:C105,'Следене на оценките'!C105)","v":"0"}]
[null,103,{"$f":"'Следене на оценките'!C106&COUNTIF('Следене на оценките'!$C$4:C106,'Следене на оценките'!C106)","v":"0"}]
[null,104,{"$f":"'Следене на оценките'!C107&COUNTIF('Следене на оценките'!$C$4:C107,'Следене на оценките'!C107)","v":"0"}]
[null,105,{"$f":"'Следене на оценките'!C108&COUNTIF('Следене на оценките'!$C$4:C108,'Следене на оценките'!C108)","v":"0"}]
[null,106,{"$f":"'Следене на оценките'!C109&COUNTIF('Следене на оценките'!$C$4:C109,'Следене на оценките'!C109)","v":"0"}]
[null,107,{"$f":"'Следене на оценките'!C110&COUNTIF('Следене на оценките'!$C$4:C110,'Следене на оценките'!C110)","v":"0"}]
[null,108,{"$f":"'Следене на оценките'!C111&COUNTIF('Следене на оценките'!$C$4:C111,'Следене на оценките'!C111)","v":"0"}]
[null,109,{"$f":"'Следене на оценките'!C112&COUNTIF('Следене на оценките'!$C$4:C112,'Следене на оценките'!C112)","v":"0"}]
[null,110,{"$f":"'Следене на оценките'!C113&COUNTIF('Следене на оценките'!$C$4:C113,'Следене на оценките'!C113)","v":"0"}]
[null,111,{"$f":"'Следене на оценките'!C114&COUNTIF('Следене на оценките'!$C$4:C114,'Следене на оценките'!C114)","v":"0"}]
[null,112,{"$f":"'Следене на оценките'!C115&COUNTIF('Следене на оценките'!$C$4:C115,'Следене на оценките'!C115)","v":"0"}]
[null,113,{"$f":"'Следене на оценките'!C116&COUNTIF('Следене на оценките'!$C$4:C116,'Следене на оценките'!C116)","v":"0"}]
[null,114,{"$f":"'Следене на оценките'!C117&COUNTIF('Следене на оценките'!$C$4:C117,'Следене на оценките'!C117)","v":"0"}]
[null,115,{"$f":"'Следене на оценките'!C118&COUNTIF('Следене на оценките'!$C$4:C118,'Следене на оценките'!C118)","v":"0"}]
[null,116,{"$f":"'Следене на оценките'!C119&COUNTIF('Следене на оценките'!$C$4:C119,'Следене на оценките'!C119)","v":"0"}]
[null,117,{"$f":"'Следене на оценките'!C120&COUNTIF('Следене на оценките'!$C$4:C120,'Следене на оценките'!C120)","v":"0"}]
[null,118,{"$f":"'Следене на оценките'!C121&COUNTIF('Следене на оценките'!$C$4:C121,'Следене на оценките'!C121)","v":"0"}]
[null,119,{"$f":"'Следене на оценките'!C122&COUNTIF('Следене на оценките'!$C$4:C122,'Следене на оценките'!C122)","v":"0"}]
[null,120,{"$f":"'Следене на оценките'!C123&COUNTIF('Следене на оценките'!$C$4:C123,'Следене на оценките'!C123)","v":"0"}]
[null,121,{"$f":"'Следене на оценките'!C124&COUNTIF('Следене на оценките'!$C$4:C124,'Следене на оценките'!C124)","v":"0"}]
[null,122,{"$f":"'Следене на оценките'!C125&COUNTIF('Следене на оценките'!$C$4:C125,'Следене на оценките'!C125)","v":"0"}]
[null,123,{"$f":"'Следене на оценките'!C126&COUNTIF('Следене на оценките'!$C$4:C126,'Следене на оценките'!C126)","v":"0"}]
[null,124,{"$f":"'Следене на оценките'!C127&COUNTIF('Следене на оценките'!$C$4:C127,'Следене на оценките'!C127)","v":"0"}]
[null,125,{"$f":"'Следене на оценките'!C128&COUNTIF('Следене на оценките'!$C$4:C128,'Следене на оценките'!C128)","v":"0"}]
[null,126,{"$f":"'Следене на оценките'!C129&COUNTIF('Следене на оценките'!$C$4:C129,'Следене на оценките'!C129)","v":"0"}]
[null,127,{"$f":"'Следене на оценките'!C130&COUNTIF('Следене на оценките'!$C$4:C130,'Следене на оценките'!C130)","v":"0"}]
[null,128,{"$f":"'Следене на оценките'!C131&COUNTIF('Следене на оценките'!$C$4:C131,'Следене на оценките'!C131)","v":"0"}]
[null,129,{"$f":"'Следене на оценките'!C132&COUNTIF('Следене на оценките'!$C$4:C132,'Следене на оценките'!C132)","v":"0"}]
[null,130,{"$f":"'Следене на оценките'!C133&COUNTIF('Следене на оценките'!$C$4:C133,'Следене на оценките'!C133)","v":"0"}]
[null,131,{"$f":"'Следене на оценките'!C134&COUNTIF('Следене на оценките'!$C$4:C134,'Следене на оценките'!C134)","v":"0"}]
[null,132,{"$f":"'Следене на оценките'!C135&COUNTIF('Следене на оценките'!$C$4:C135,'Следене на оценките'!C135)","v":"0"}]
[null,133,{"$f":"'Следене на оценките'!C136&COUNTIF('Следене на оценките'!$C$4:C136,'Следене на оценките'!C136)","v":"0"}]
[null,134,{"$f":"'Следене на оценките'!C137&COUNTIF('Следене на оценките'!$C$4:C137,'Следене на оценките'!C137)","v":"0"}]
[null,135,{"$f":"'Следене на оценките'!C138&COUNTIF('Следене на оценките'!$C$4:C138,'Следене на оценките'!C138)","v":"0"}]
[null,136,{"$f":"'Следене на оценките'!C139&COUNTIF('Следене на оценките'!$C$4:C139,'Следене на оценките'!C139)","v":"0"}]
[null,137,{"$f":"'Следене на оценките'!C140&COUNTIF('Следене на оценките'!$C$4:C140,'Следене на оценките'!C140)","v":"0"}]
[null,138,{"$f":"'Следене на оценките'!C141&COUNTIF('Следене на оценките'!$C$4:C141,'Следене на оценките'!C141)","v":"0"}]
[null,139,{"$f":"'Следене на оценките'!C142&COUNTIF('Следене на оценките'!$C$4:C142,'Следене на оценките'!C142)","v":"0"}]
[null,140,{"$f":"'Следене на оценките'!C143&COUNTIF('Следене на оценките'!$C$4:C143,'Следене на оценките'!C143)","v":"0"}]
[null,141,{"$f":"'Следене на оценките'!C144&COUNTIF('Следене на оценките'!$C$4:C144,'Следене на оценките'!C144)","v":"0"}]
[null,142,{"$f":"'Следене на оценките'!C145&COUNTIF('Следене на оценките'!$C$4:C145,'Следене на оценките'!C145)","v":"0"}]
[null,143,{"$f":"'Следене на оценките'!C146&COUNTIF('Следене на оценките'!$C$4:C146,'Следене на оценките'!C146)","v":"0"}]
[null,144,{"$f":"'Следене на оценките'!C147&COUNTIF('Следене на оценките'!$C$4:C147,'Следене на оценките'!C147)","v":"0"}]
[null,145,{"$f":"'Следене на оценките'!C148&COUNTIF('Следене на оценките'!$C$4:C148,'Следене на оценките'!C148)","v":"0"}]
[null,146,{"$f":"'Следене на оценките'!C149&COUNTIF('Следене на оценките'!$C$4:C149,'Следене на оценките'!C149)","v":"0"}]
[null,147,{"$f":"'Следене на оценките'!C150&COUNTIF('Следене на оценките'!$C$4:C150,'Следене на оценките'!C150)","v":"0"}]
[null,148,{"$f":"'Следене на оценките'!C151&COUNTIF('Следене на оценките'!$C$4:C151,'Следене на оценките'!C151)","v":"0"}]
[null,149,{"$f":"'Следене на оценките'!C152&COUNTIF('Следене на оценките'!$C$4:C152,'Следене на оценките'!C152)","v":"0"}]
[null,150,{"$f":"'Следене на оценките'!C153&COUNTIF('Следене на оценките'!$C$4:C153,'Следене на оценките'!C153)","v":"0"}]
[null,151,{"$f":"'Следене на оценките'!C154&COUNTIF('Следене на оценките'!$C$4:C154,'Следене на оценките'!C154)","v":"0"}]
[null,152,{"$f":"'Следене на оценките'!C155&COUNTIF('Следене на оценките'!$C$4:C155,'Следене на оценките'!C155)","v":"0"}]
[null,153,{"$f":"'Следене на оценките'!C156&COUNTIF('Следене на оценките'!$C$4:C156,'Следене на оценките'!C156)","v":"0"}]
[null,154,{"$f":"'Следене на оценките'!C157&COUNTIF('Следене на оценките'!$C$4:C157,'Следене на оценките'!C157)","v":"0"}]
[null,155,{"$f":"'Следене на оценките'!C158&COUNTIF('Следене на оценките'!$C$4:C158,'Следене на оценките'!C158)","v":"0"}]
[null,156,{"$f":"'Следене на оценките'!C159&COUNTIF('Следене на оценките'!$C$4:C159,'Следене на оценките'!C159)","v":"0"}]
[null,157,{"$f":"'Следене на оценките'!C160&COUNTIF('Следене на оценките'!$C$4:C160,'Следене на оценките'!C160)","v":"0"}]
[null,158,{"$f":"'Следене на оценките'!C161&COUNTIF('Следене на оценките'!$C$4:C161,'Следене на оценките'!C161)","v":"0"}]
[null,159,{"$f":"'Следене на оценките'!C162&COUNTIF('Следене на оценките'!$C$4:C162,'Следене на оценките'!C162)","v":"0"}]
[null,160,{"$f":"'Следене на оценките'!C163&COUNTIF('Следене на оценките'!$C$4:C163,'Следене на оценките'!C163)","v":"0"}]
[null,161,{"$f":"'Следене на оценките'!C164&COUNTIF('Следене на оценките'!$C$4:C164,'Следене на оценките'!C164)","v":"0"}]
[null,162,{"$f":"'Следене на оценките'!C165&COUNTIF('Следене на оценките'!$C$4:C165,'Следене на оценките'!C165)","v":"0"}]
[null,163,{"$f":"'Следене на оценките'!C166&COUNTIF('Следене на оценките'!$C$4:C166,'Следене на оценките'!C166)","v":"0"}]
[null,164,{"$f":"'Следене на оценките'!C167&COUNTIF('Следене на оценките'!$C$4:C167,'Следене на оценките'!C167)","v":"0"}]
[null,165,{"$f":"'Следене на оценките'!C168&COUNTIF('Следене на оценките'!$C$4:C168,'Следене на оценките'!C168)","v":"0"}]
[null,166,{"$f":"'Следене на оценките'!C169&COUNTIF('Следене на оценките'!$C$4:C169,'Следене на оценките'!C169)","v":"0"}]
[null,167,{"$f":"'Следене на оценките'!C170&COUNTIF('Следене на оценките'!$C$4:C170,'Следене на оценките'!C170)","v":"0"}]
[null,168,{"$f":"'Следене на оценките'!C171&COUNTIF('Следене на оценките'!$C$4:C171,'Следене на оценките'!C171)","v":"0"}]
[null,169,{"$f":"'Следене на оценките'!C172&COUNTIF('Следене на оценките'!$C$4:C172,'Следене на оценките'!C172)","v":"0"}]
[null,170,{"$f":"'Следене на оценките'!C173&COUNTIF('Следене на оценките'!$C$4:C173,'Следене на оценките'!C173)","v":"0"}]
[null,171,{"$f":"'Следене на оценките'!C174&COUNTIF('Следене на оценките'!$C$4:C174,'Следене на оценките'!C174)","v":"0"}]
[null,172,{"$f":"'Следене на оценките'!C175&COUNTIF('Следене на оценките'!$C$4:C175,'Следене на оценките'!C175)","v":"0"}]
[null,173,{"$f":"'Следене на оценките'!C176&COUNTIF('Следене на оценките'!$C$4:C176,'Следене на оценките'!C176)","v":"0"}]
[null,174,{"$f":"'Следене на оценките'!C177&COUNTIF('Следене на оценките'!$C$4:C177,'Следене на оценките'!C177)","v":"0"}]
[null,175,{"$f":"'Следене на оценките'!C178&COUNTIF('Следене на оценките'!$C$4:C178,'Следене на оценките'!C178)","v":"0"}]
[null,176,{"$f":"'Следене на оценките'!C179&COUNTIF('Следене на оценките'!$C$4:C179,'Следене на оценките'!C179)","v":"0"}]
[null,177,{"$f":"'Следене на оценките'!C180&COUNTIF('Следене на оценките'!$C$4:C180,'Следене на оценките'!C180)","v":"0"}]
[null,178,{"$f":"'Следене на оценките'!C181&COUNTIF('Следене на оценките'!$C$4:C181,'Следене на оценките'!C181)","v":"0"}]
[null,179,{"$f":"'Следене на оценките'!C182&COUNTIF('Следене на оценките'!$C$4:C182,'Следене на оценките'!C182)","v":"0"}]
[null,180,{"$f":"'Следене на оценките'!C183&COUNTIF('Следене на оценките'!$C$4:C183,'Следене на оценките'!C183)","v":"0"}]
[null,181,{"$f":"'Следене на оценките'!C184&COUNTIF('Следене на оценките'!$C$4:C184,'Следене на оценките'!C184)","v":"0"}]
[null,182,{"$f":"'Следене на оценките'!C185&COUNTIF('Следене на оценките'!$C$4:C185,'Следене на оценките'!C185)","v":"0"}]
[null,183,{"$f":"'Следене на оценките'!C186&COUNTIF('Следене на оценките'!$C$4:C186,'Следене на оценките'!C186)","v":"0"}]
[null,184,{"$f":"'Следене на оценките'!C187&COUNTIF('Следене на оценките'!$C$4:C187,'Следене на оценките'!C187)","v":"0"}]
[null,185,{"$f":"'Следене на оценките'!C188&COUNTIF('Следене на оценките'!$C$4:C188,'Следене на оценките'!C188)","v":"0"}]
[null,186,{"$f":"'Следене на оценките'!C189&COUNTIF('Следене на оценките'!$C$4:C189,'Следене на оценките'!C189)","v":"0"}]
[null,187,{"$f":"'Следене на оценките'!C190&COUNTIF('Следене на оценките'!$C$4:C190,'Следене на оценките'!C190)","v":"0"}]
[null,188,{"$f":"'Следене на оценките'!C191&COUNTIF('Следене на оценките'!$C$4:C191,'Следене на оценките'!C191)","v":"0"}]
[null,189,{"$f":"'Следене на оценките'!C192&COUNTIF('Следене на оценките'!$C$4:C192,'Следене на оценките'!C192)","v":"0"}]
[null,190,{"$f":"'Следене на оценките'!C193&COUNTIF('Следене на оценките'!$C$4:C193,'Следене на оценките'!C193)","v":"0"}]
[null,191,{"$f":"'Следене на оценките'!C194&COUNTIF('Следене на оценките'!$C$4:C194,'Следене на оценките'!C194)","v":"0"}]
[null,192,{"$f":"'Следене на оценките'!C195&COUNTIF('Следене на оценките'!$C$4:C195,'Следене на оценките'!C195)","v":"0"}]
[null,193,{"$f":"'Следене на оценките'!C196&COUNTIF('Следене на оценките'!$C$4:C196,'Следене на оценките'!C196)","v":"0"}]
[null,194,{"$f":"'Следене на оценките'!C197&COUNTIF('Следене на оценките'!$C$4:C197,'Следене на оценките'!C197)","v":"0"}]
[null,195,{"$f":"'Следене на оценките'!C198&COUNTIF('Следене на оценките'!$C$4:C198,'Следене на оценките'!C198)","v":"0"}]
[null,196,{"$f":"'Следене на оценките'!C199&COUNTIF('Следене на оценките'!$C$4:C199,'Следене на оценките'!C199)","v":"0"}]
[null,197,{"$f":"'Следене на оценките'!C200&COUNTIF('Следене на оценките'!$C$4:C200,'Следене на оценките'!C200)","v":"0"}]
[null,198,{"$f":"'Следене на оценките'!C201&COUNTIF('Следене на оценките'!$C$4:C201,'Следене на оценките'!C201)","v":"0"}]
[null,199,{"$f":"'Следене на оценките'!C202&COUNTIF('Следене на оценките'!$C$4:C202,'Следене на оценките'!C202)","v":"0"}]
[null,200,{"$f":"'Следене на оценките'!C203&COUNTIF('Следене на оценките'!$C$4:C203,'Следене на оценките'!C203)","v":"0"}]
[null,201,{"$f":"'Следене на оценките'!C204&COUNTIF('Следене на оценките'!$C$4:C204,'Следене на оценките'!C204)","v":"0"}]
[null,202,{"$f":"'Следене на оценките'!C205&COUNTIF('Следене на оценките'!$C$4:C205,'Следене на оценките'!C205)","v":"0"}]
[null,203,{"$f":"'Следене на оценките'!C206&COUNTIF('Следене на оценките'!$C$4:C206,'Следене на оценките'!C206)","v":"0"}]
[null,204,{"$f":"'Следене на оценките'!C207&COUNTIF('Следене на оценките'!$C$4:C207,'Следене на оценките'!C207)","v":"0"}]
[null,205,{"$f":"'Следене на оценките'!C208&COUNTIF('Следене на оценките'!$C$4:C208,'Следене на оценките'!C208)","v":"0"}]
[null,206,{"$f":"'Следене на оценките'!C209&COUNTIF('Следене на оценките'!$C$4:C209,'Следене на оценките'!C209)","v":"0"}]
[null,207,{"$f":"'Следене на оценките'!C210&COUNTIF('Следене на оценките'!$C$4:C210,'Следене на оценките'!C210)","v":"0"}]
[null,208,{"$f":"'Следене на оценките'!C211&COUNTIF('Следене на оценките'!$C$4:C211,'Следене на оценките'!C211)","v":"0"}]
[null,209,{"$f":"'Следене на оценките'!C212&COUNTIF('Следене на оценките'!$C$4:C212,'Следене на оценките'!C212)","v":"0"}]
[null,210,{"$f":"'Следене на оценките'!C213&COUNTIF('Следене на оценките'!$C$4:C213,'Следене на оценките'!C213)","v":"0"}]
[null,211,{"$f":"'Следене на оценките'!C214&COUNTIF('Следене на оценките'!$C$4:C214,'Следене на оценките'!C214)","v":"0"}]
[null,212,{"$f":"'Следене на оценките'!C215&COUNTIF('Следене на оценките'!$C$4:C215,'Следене на оценките'!C215)","v":"0"}]
[null,213,{"$f":"'Следене на оценките'!C216&COUNTIF('Следене на оценките'!$C$4:C216,'Следене на оценките'!C216)","v":"0"}]
[null,214,{"$f":"'Следене на оценките'!C217&COUNTIF('Следене на оценките'!$C$4:C217,'Следене на оценките'!C217)","v":"0"}]
[null,215,{"$f":"'Следене на оценките'!C218&COUNTIF('Следене на оценките'!$C$4:C218,'Следене на оценките'!C218)","v":"0"}]
[null,216,{"$f":"'Следене на оценките'!C219&COUNTIF('Следене на оценките'!$C$4:C219,'Следене на оценките'!C219)","v":"0"}]
[null,217,{"$f":"'Следене на оценките'!C220&COUNTIF('Следене на оценките'!$C$4:C220,'Следене на оценките'!C220)","v":"0"}]
[null,218,{"$f":"'Следене на оценките'!C221&COUNTIF('Следене на оценките'!$C$4:C221,'Следене на оценките'!C221)","v":"0"}]
[null,219,{"$f":"'Следене на оценките'!C222&COUNTIF('Следене на оценките'!$C$4:C222,'Следене на оценките'!C222)","v":"0"}]
[null,220,{"$f":"'Следене на оценките'!C223&COUNTIF('Следене на оценките'!$C$4:C223,'Следене на оценките'!C223)","v":"0"}]
[null,221,{"$f":"'Следене на оценките'!C224&COUNTIF('Следене на оценките'!$C$4:C224,'Следене на оценките'!C224)","v":"0"}]
[null,222,{"$f":"'Следене на оценките'!C225&COUNTIF('Следене на оценките'!$C$4:C225,'Следене на оценките'!C225)","v":"0"}]
[null,223,{"$f":"'Следене на оценките'!C226&COUNTIF('Следене на оценките'!$C$4:C226,'Следене на оценките'!C226)","v":"0"}]
[null,224,{"$f":"'Следене на оценките'!C227&COUNTIF('Следене на оценките'!$C$4:C227,'Следене на оценките'!C227)","v":"0"}]
[null,225,{"$f":"'Следене на оценките'!C228&COUNTIF('Следене на оценките'!$C$4:C228,'Следене на оценките'!C228)","v":"0"}]
[null,226,{"$f":"'Следене на оценките'!C229&COUNTIF('Следене на оценките'!$C$4:C229,'Следене на оценките'!C229)","v":"0"}]
[null,227,{"$f":"'Следене на оценките'!C230&COUNTIF('Следене на оценките'!$C$4:C230,'Следене на оценките'!C230)","v":"0"}]
[null,228,{"$f":"'Следене на оценките'!C231&COUNTIF('Следене на оценките'!$C$4:C231,'Следене на оценките'!C231)","v":"0"}]
[null,229,{"$f":"'Следене на оценките'!C232&COUNTIF('Следене на оценките'!$C$4:C232,'Следене на оценките'!C232)","v":"0"}]
[null,230,{"$f":"'Следене на оценките'!C233&COUNTIF('Следене на оценките'!$C$4:C233,'Следене на оценките'!C233)","v":"0"}]
[null,231,{"$f":"'Следене на оценките'!C234&COUNTIF('Следене на оценките'!$C$4:C234,'Следене на оценките'!C234)","v":"0"}]
[null,232,{"$f":"'Следене на оценките'!C235&COUNTIF('Следене на оценките'!$C$4:C235,'Следене на оценките'!C235)","v":"0"}]
[null,233,{"$f":"'Следене на оценките'!C236&COUNTIF('Следене на оценките'!$C$4:C236,'Следене на оценките'!C236)","v":"0"}]
[null,234,{"$f":"'Следене на оценките'!C237&COUNTIF('Следене на оценките'!$C$4:C237,'Следене на оценките'!C237)","v":"0"}]
[null,235,{"$f":"'Следене на оценките'!C238&COUNTIF('Следене на оценките'!$C$4:C238,'Следене на оценките'!C238)","v":"0"}]
[null,236,{"$f":"'Следене на оценките'!C239&COUNTIF('Следене на оценките'!$C$4:C239,'Следене на оценките'!C239)","v":"0"}]
[null,237,{"$f":"'Следене на оценките'!C240&COUNTIF('Следене на оценките'!$C$4:C240,'Следене на оценките'!C240)","v":"0"}]
[null,238,{"$f":"'Следене на оценките'!C241&COUNTIF('Следене на оценките'!$C$4:C241,'Следене на оценките'!C241)","v":"0"}]
[null,239,{"$f":"'Следене на оценките'!C242&COUNTIF('Следене на оценките'!$C$4:C242,'Следене на оценките'!C242)","v":"0"}]
[null,240,{"$f":"'Следене на оценките'!C243&COUNTIF('Следене на оценките'!$C$4:C243,'Следене на оценките'!C243)","v":"0"}]
[null,241,{"$f":"'Следене на оценките'!C244&COUNTIF('Следене на оценките'!$C$4:C244,'Следене на оценките'!C244)","v":"0"}]
[null,242,{"$f":"'Следене на оценките'!C245&COUNTIF('Следене на оценките'!$C$4:C245,'Следене на оценките'!C245)","v":"0"}]
[null,243,{"$f":"'Следене на оценките'!C246&COUNTIF('Следене на оценките'!$C$4:C246,'Следене на оценките'!C246)","v":"0"}]
[null,244,{"$f":"'Следене на оценките'!C247&COUNTIF('Следене на оценките'!$C$4:C247,'Следене на оценките'!C247)","v":"0"}]
[null,245,{"$f":"'Следене на оценките'!C248&COUNTIF('Следене на оценките'!$C$4:C248,'Следене на оценките'!C248)","v":"0"}]
[null,246,{"$f":"'Следене на оценките'!C249&COUNTIF('Следене на оценките'!$C$4:C249,'Следене на оценките'!C249)","v":"0"}]
[null,247,{"$f":"'Следене на оценките'!C250&COUNTIF('Следене на оценките'!$C$4:C250,'Следене на оценките'!C250)","v":"0"}]
[null,248,{"$f":"'Следене на оценките'!C251&COUNTIF('Следене на оценките'!$C$4:C251,'Следене на оценките'!C251)","v":"0"}]
[null,249,{"$f":"'Следене на оценките'!C252&COUNTIF('Следене на оценките'!$C$4:C252,'Следене на оценките'!C252)","v":"0"}]
[null,250,{"$f":"'Следене на оценките'!C253&COUNTIF('Следене на оценките'!$C$4:C253,'Следене на оценките'!C253)","v":"0"}]
[null,251,{"$f":"'Следене на оценките'!C254&COUNTIF('Следене на оценките'!$C$4:C254,'Следене на оценките'!C254)","v":"0"}]
[null,252,{"$f":"'Следене на оценките'!C255&COUNTIF('Следене на оценките'!$C$4:C255,'Следене на оценките'!C255)","v":"0"}]
[null,253,{"$f":"'Следене на оценките'!C256&COUNTIF('Следене на оценките'!$C$4:C256,'Следене на оценките'!C256)","v":"0"}]
[null,254,{"$f":"'Следене на оценките'!C257&COUNTIF('Следене на оценките'!$C$4:C257,'Следене на оценките'!C257)","v":"0"}]
[null,255,{"$f":"'Следене на оценките'!C258&COUNTIF('Следене на оценките'!$C$4:C258,'Следене на оценките'!C258)","v":"0"}]
[null,256,{"$f":"'Следене на оценките'!C259&COUNTIF('Следене на оценките'!$C$4:C259,'Следене на оценките'!C259)","v":"0"}]
[null,257,{"$f":"'Следене на оценките'!C260&COUNTIF('Следене на оценките'!$C$4:C260,'Следене на оценките'!C260)","v":"0"}]
[null,258,{"$f":"'Следене на оценките'!C261&COUNTIF('Следене на оценките'!$C$4:C261,'Следене на оценките'!C261)","v":"0"}]
[null,259,{"$f":"'Следене на оценките'!C262&COUNTIF('Следене на оценките'!$C$4:C262,'Следене на оценките'!C262)","v":"0"}]
[null,260,{"$f":"'Следене на оценките'!C263&COUNTIF('Следене на оценките'!$C$4:C263,'Следене на оценките'!C263)","v":"0"}]
[null,261,{"$f":"'Следене на оценките'!C264&COUNTIF('Следене на оценките'!$C$4:C264,'Следене на оценките'!C264)","v":"0"}]
[null,262,{"$f":"'Следене на оценките'!C265&COUNTIF('Следене на оценките'!$C$4:C265,'Следене на оценките'!C265)","v":"0"}]
[null,263,{"$f":"'Следене на оценките'!C266&COUNTIF('Следене на оценките'!$C$4:C266,'Следене на оценките'!C266)","v":"0"}]
[null,264,{"$f":"'Следене на оценките'!C267&COUNTIF('Следене на оценките'!$C$4:C267,'Следене на оценките'!C267)","v":"0"}]
[null,265,{"$f":"'Следене на оценките'!C268&COUNTIF('Следене на оценките'!$C$4:C268,'Следене на оценките'!C268)","v":"0"}]
[null,266,{"$f":"'Следене на оценките'!C269&COUNTIF('Следене на оценките'!$C$4:C269,'Следене на оценките'!C269)","v":"0"}]
[null,267,{"$f":"'Следене на оценките'!C270&COUNTIF('Следене на оценките'!$C$4:C270,'Следене на оценките'!C270)","v":"0"}]
[null,268,{"$f":"'Следене на оценките'!C271&COUNTIF('Следене на оценките'!$C$4:C271,'Следене на оценките'!C271)","v":"0"}]
[null,269,{"$f":"'Следене на оценките'!C272&COUNTIF('Следене на оценките'!$C$4:C272,'Следене на оценките'!C272)","v":"0"}]
[null,270,{"$f":"'Следене на оценките'!C273&COUNTIF('Следене на оценките'!$C$4:C273,'Следене на оценките'!C273)","v":"0"}]
[null,271,{"$f":"'Следене на оценките'!C274&COUNTIF('Следене на оценките'!$C$4:C274,'Следене на оценките'!C274)","v":"0"}]
[null,272,{"$f":"'Следене на оценките'!C275&COUNTIF('Следене на оценките'!$C$4:C275,'Следене на оценките'!C275)","v":"0"}]
[null,273,{"$f":"'Следене на оценките'!C276&COUNTIF('Следене на оценките'!$C$4:C276,'Следене на оценките'!C276)","v":"0"}]
[null,274,{"$f":"'Следене на оценките'!C277&COUNTIF('Следене на оценките'!$C$4:C277,'Следене на оценките'!C277)","v":"0"}]
[null,275,{"$f":"'Следене на оценките'!C278&COUNTIF('Следене на оценките'!$C$4:C278,'Следене на оценките'!C278)","v":"0"}]
[null,276,{"$f":"'Следене на оценките'!C279&COUNTIF('Следене на оценките'!$C$4:C279,'Следене на оценките'!C279)","v":"0"}]
[null,277,{"$f":"'Следене на оценките'!C280&COUNTIF('Следене на оценките'!$C$4:C280,'Следене на оценките'!C280)","v":"0"}]
[null,278,{"$f":"'Следене на оценките'!C281&COUNTIF('Следене на оценките'!$C$4:C281,'Следене на оценките'!C281)","v":"0"}]
[null,279,{"$f":"'Следене на оценките'!C282&COUNTIF('Следене на оценките'!$C$4:C282,'Следене на оценките'!C282)","v":"0"}]
[null,280,{"$f":"'Следене на оценките'!C283&COUNTIF('Следене на оценките'!$C$4:C283,'Следене на оценките'!C283)","v":"0"}]
[null,281,{"$f":"'Следене на оценките'!C284&COUNTIF('Следене на оценките'!$C$4:C284,'Следене на оценките'!C284)","v":"0"}]
[null,282,{"$f":"'Следене на оценките'!C285&COUNTIF('Следене на оценките'!$C$4:C285,'Следене на оценките'!C285)","v":"0"}]
[null,283,{"$f":"'Следене на оценките'!C286&COUNTIF('Следене на оценките'!$C$4:C286,'Следене на оценките'!C286)","v":"0"}]
[null,284,{"$f":"'Следене на оценките'!C287&COUNTIF('Следене на оценките'!$C$4:C287,'Следене на оценките'!C287)","v":"0"}]
[null,285,{"$f":"'Следене на оценките'!C288&COUNTIF('Следене на оценките'!$C$4:C288,'Следене на оценките'!C288)","v":"0"}]
[null,286,{"$f":"'Следене на оценките'!C289&COUNTIF('Следене на оценките'!$C$4:C289,'Следене на оценките'!C289)","v":"0"}]
[null,287,{"$f":"'Следене на оценките'!C290&COUNTIF('Следене на оценките'!$C$4:C290,'Следене на оценките'!C290)","v":"0"}]
[null,288,{"$f":"'Следене на оценките'!C291&COUNTIF('Следене на оценките'!$C$4:C291,'Следене на оценките'!C291)","v":"0"}]
[null,289,{"$f":"'Следене на оценките'!C292&COUNTIF('Следене на оценките'!$C$4:C292,'Следене на оценките'!C292)","v":"0"}]
[null,290,{"$f":"'Следене на оценките'!C293&COUNTIF('Следене на оценките'!$C$4:C293,'Следене на оценките'!C293)","v":"0"}]
[null,291,{"$f":"'Следене на оценките'!C294&COUNTIF('Следене на оценките'!$C$4:C294,'Следене на оценките'!C294)","v":"0"}]
[null,292,{"$f":"'Следене на оценките'!C295&COUNTIF('Следене на оценките'!$C$4:C295,'Следене на оценките'!C295)","v":"0"}]
[null,293,{"$f":"'Следене на оценките'!C296&COUNTIF('Следене на оценките'!$C$4:C296,'Следене на оценките'!C296)","v":"0"}]
[null,294,{"$f":"'Следене на оценките'!C297&COUNTIF('Следене на оценките'!$C$4:C297,'Следене на оценките'!C297)","v":"0"}]
[null,295,{"$f":"'Следене на оценките'!C298&COUNTIF('Следене на оценките'!$C$4:C298,'Следене на оценките'!C298)","v":"0"}]
[null,296,{"$f":"'Следене на оценките'!C299&COUNTIF('Следене на оценките'!$C$4:C299,'Следене на оценките'!C299)","v":"0"}]
[null,297,{"$f":"'Следене на оценките'!C300&COUNTIF('Следене на оценките'!$C$4:C300,'Следене на оценките'!C300)","v":"0"}]
[null,298,{"$f":"'Следене на оценките'!C301&COUNTIF('Следене на оценките'!$C$4:C301,'Следене на оценките'!C301)","v":"0"}]
[null,299,{"$f":"'Следене на оценките'!C302&COUNTIF('Следене на оценките'!$C$4:C302,'Следене на оценките'!C302)","v":"0"}]
[null,300,{"$f":"'Следене на оценките'!C303&COUNTIF('Следене на оценките'!$C$4:C303,'Следене на оценките'!C303)","v":"0"}]
[null,301,{"$f":"'Следене на оценките'!C304&COUNTIF('Следене на оценките'!$C$4:C304,'Следене на оценките'!C304)","v":"0"}]
[null,302,{"$f":"'Следене на оценките'!C305&COUNTIF('Следене на оценките'!$C$4:C305,'Следене на оценките'!C305)","v":"0"}]
[null,303,{"$f":"'Следене на оценките'!C306&COUNTIF('Следене на оценките'!$C$4:C306,'Следене на оценките'!C306)","v":"0"}]
[null,304,{"$f":"'Следене на оценките'!C307&COUNTIF('Следене на оценките'!$C$4:C307,'Следене на оценките'!C307)","v":"0"}]
[null,305,{"$f":"'Следене на оценките'!C308&COUNTIF('Следене на оценките'!$C$4:C308,'Следене на оценките'!C308)","v":"0"}]
[null,306,{"$f":"'Следене на оценките'!C309&COUNTIF('Следене на оценките'!$C$4:C309,'Следене на оценките'!C309)","v":"0"}]
[null,307,{"$f":"'Следене на оценките'!C310&COUNTIF('Следене на оценките'!$C$4:C310,'Следене на оценките'!C310)","v":"0"}]
[null,308,{"$f":"'Следене на оценките'!C311&COUNTIF('Следене на оценките'!$C$4:C311,'Следене на оценките'!C311)","v":"0"}]
[null,309,{"$f":"'Следене на оценките'!C312&COUNTIF('Следене на оценките'!$C$4:C312,'Следене на оценките'!C312)","v":"0"}]
[null,310,{"$f":"'Следене на оценките'!C313&COUNTIF('Следене на оценките'!$C$4:C313,'Следене на оценките'!C313)","v":"0"}]
[null,311,{"$f":"'Следене на оценките'!C314&COUNTIF('Следене на оценките'!$C$4:C314,'Следене на оценките'!C314)","v":"0"}]
[null,312,{"$f":"'Следене на оценките'!C315&COUNTIF('Следене на оценките'!$C$4:C315,'Следене на оценките'!C315)","v":"0"}]
[null,313,{"$f":"'Следене на оценките'!C316&COUNTIF('Следене на оценките'!$C$4:C316,'Следене на оценките'!C316)","v":"0"}]
[null,314,{"$f":"'Следене на оценките'!C317&COUNTIF('Следене на оценките'!$C$4:C317,'Следене на оценките'!C317)","v":"0"}]
[null,315,{"$f":"'Следене на оценките'!C318&COUNTIF('Следене на оценките'!$C$4:C318,'Следене на оценките'!C318)","v":"0"}]
[null,316,{"$f":"'Следене на оценките'!C319&COUNTIF('Следене на оценките'!$C$4:C319,'Следене на оценките'!C319)","v":"0"}]
[null,317,{"$f":"'Следене на оценките'!C320&COUNTIF('Следене на оценките'!$C$4:C320,'Следене на оценките'!C320)","v":"0"}]
[null,318,{"$f":"'Следене на оценките'!C321&COUNTIF('Следене на оценките'!$C$4:C321,'Следене на оценките'!C321)","v":"0"}]
[null,319,{"$f":"'Следене на оценките'!C322&COUNTIF('Следене на оценките'!$C$4:C322,'Следене на оценките'!C322)","v":"0"}]
[null,320,{"$f":"'Следене на оценките'!C323&COUNTIF('Следене на оценките'!$C$4:C323,'Следене на оценките'!C323)","v":"0"}]
[null,321,{"$f":"'Следене на оценките'!C324&COUNTIF('Следене на оценките'!$C$4:C324,'Следене на оценките'!C324)","v":"0"}]
[null,322,{"$f":"'Следене на оценките'!C325&COUNTIF('Следене на оценките'!$C$4:C325,'Следене на оценките'!C325)","v":"0"}]
[null,323,{"$f":"'Следене на оценките'!C326&COUNTIF('Следене на оценките'!$C$4:C326,'Следене на оценките'!C326)","v":"0"}]
[null,324,{"$f":"'Следене на оценките'!C327&COUNTIF('Следене на оценките'!$C$4:C327,'Следене на оценките'!C327)","v":"0"}]
[null,325,{"$f":"'Следене на оценките'!C328&COUNTIF('Следене на оценките'!$C$4:C328,'Следене на оценките'!C328)","v":"0"}]
[null,326,{"$f":"'Следене на оценките'!C329&COUNTIF('Следене на оценките'!$C$4:C329,'Следене на оценките'!C329)","v":"0"}]
[null,327,{"$f":"'Следене на оценките'!C330&COUNTIF('Следене на оценките'!$C$4:C330,'Следене на оценките'!C330)","v":"0"}]
[null,328,{"$f":"'Следене на оценките'!C331&COUNTIF('Следене на оценките'!$C$4:C331,'Следене на оценките'!C331)","v":"0"}]
[null,329,{"$f":"'Следене на оценките'!C332&COUNTIF('Следене на оценките'!$C$4:C332,'Следене на оценките'!C332)","v":"0"}]
[null,330,{"$f":"'Следене на оценките'!C333&COUNTIF('Следене на оценките'!$C$4:C333,'Следене на оценките'!C333)","v":"0"}]
[null,331,{"$f":"'Следене на оценките'!C334&COUNTIF('Следене на оценките'!$C$4:C334,'Следене на оценките'!C334)","v":"0"}]
[null,332,{"$f":"'Следене на оценките'!C335&COUNTIF('Следене на оценките'!$C$4:C335,'Следене на оценките'!C335)","v":"0"}]
[null,333,{"$f":"'Следене на оценките'!C336&COUNTIF('Следене на оценките'!$C$4:C336,'Следене на оценките'!C336)","v":"0"}]
[null,334,{"$f":"'Следене на оценките'!C337&COUNTIF('Следене на оценките'!$C$4:C337,'Следене на оценките'!C337)","v":"0"}]
[null,335,{"$f":"'Следене на оценките'!C338&COUNTIF('Следене на оценките'!$C$4:C338,'Следене на оценките'!C338)","v":"0"}]
[null,336,{"$f":"'Следене на оценките'!C339&COUNTIF('Следене на оценките'!$C$4:C339,'Следене на оценките'!C339)","v":"0"}]
[null,337,{"$f":"'Следене на оценките'!C340&COUNTIF('Следене на оценките'!$C$4:C340,'Следене на оценките'!C340)","v":"0"}]
[null,338,{"$f":"'Следене на оценките'!C341&COUNTIF('Следене на оценките'!$C$4:C341,'Следене на оценките'!C341)","v":"0"}]
[null,339,{"$f":"'Следене на оценките'!C342&COUNTIF('Следене на оценките'!$C$4:C342,'Следене на оценките'!C342)","v":"0"}]
[null,340,{"$f":"'Следене на оценките'!C343&COUNTIF('Следене на оценките'!$C$4:C343,'Следене на оценките'!C343)","v":"0"}]
[null,341,{"$f":"'Следене на оценките'!C344&COUNTIF('Следене на оценките'!$C$4:C344,'Следене на оценките'!C344)","v":"0"}]
[null,342,{"$f":"'Следене на оценките'!C345&COUNTIF('Следене на оценките'!$C$4:C345,'Следене на оценките'!C345)","v":"0"}]
[null,343,{"$f":"'Следене на оценките'!C346&COUNTIF('Следене на оценките'!$C$4:C346,'Следене на оценките'!C346)","v":"0"}]
[null,344,{"$f":"'Следене на оценките'!C347&COUNTIF('Следене на оценките'!$C$4:C347,'Следене на оценките'!C347)","v":"0"}]
[null,345,{"$f":"'Следене на оценките'!C348&COUNTIF('Следене на оценките'!$C$4:C348,'Следене на оценките'!C348)","v":"0"}]
[null,346,{"$f":"'Следене на оценките'!C349&COUNTIF('Следене на оценките'!$C$4:C349,'Следене на оценките'!C349)","v":"0"}]
[null,347,{"$f":"'Следене на оценките'!C350&COUNTIF('Следене на оценките'!$C$4:C350,'Следене на оценките'!C350)","v":"0"}]
[null,348,{"$f":"'Следене на оценките'!C351&COUNTIF('Следене на оценките'!$C$4:C351,'Следене на оценките'!C351)","v":"0"}]
[null,349,{"$f":"'Следене на оценките'!C352&COUNTIF('Следене на оценките'!$C$4:C352,'Следене на оценките'!C352)","v":"0"}]
[null,350,{"$f":"'Следене на оценките'!C353&COUNTIF('Следене на оценките'!$C$4:C353,'Следене на оценките'!C353)","v":"0"}]
[null,351,{"$f":"'Следене на оценките'!C354&COUNTIF('Следене на оценките'!$C$4:C354,'Следене на оценките'!C354)","v":"0"}]
[null,352,{"$f":"'Следене на оценките'!C355&COUNTIF('Следене на оценките'!$C$4:C355,'Следене на оценките'!C355)","v":"0"}]
[null,353,{"$f":"'Следене на оценките'!C356&COUNTIF('Следене на оценките'!$C$4:C356,'Следене на оценките'!C356)","v":"0"}]
[null,354,{"$f":"'Следене на оценките'!C357&COUNTIF('Следене на оценките'!$C$4:C357,'Следене на оценките'!C357)","v":"0"}]
[null,355,{"$f":"'Следене на оценките'!C358&COUNTIF('Следене на оценките'!$C$4:C358,'Следене на оценките'!C358)","v":"0"}]
[null,356,{"$f":"'Следене на оценките'!C359&COUNTIF('Следене на оценките'!$C$4:C359,'Следене на оценките'!C359)","v":"0"}]
[null,357,{"$f":"'Следене на оценките'!C360&COUNTIF('Следене на оценките'!$C$4:C360,'Следене на оценките'!C360)","v":"0"}]
[null,358,{"$f":"'Следене на оценките'!C361&COUNTIF('Следене на оценките'!$C$4:C361,'Следене на оценките'!C361)","v":"0"}]
[null,359,{"$f":"'Следене на оценките'!C362&COUNTIF('Следене на оценките'!$C$4:C362,'Следене на оценките'!C362)","v":"0"}]
[null,360,{"$f":"'Следене на оценките'!C363&COUNTIF('Следене на оценките'!$C$4:C363,'Следене на оценките'!C363)","v":"0"}]
[null,361,{"$f":"'Следене на оценките'!C364&COUNTIF('Следене на оценките'!$C$4:C364,'Следене на оценките'!C364)","v":"0"}]
[null,362,{"$f":"'Следене на оценките'!C365&COUNTIF('Следене на оценките'!$C$4:C365,'Следене на оценките'!C365)","v":"0"}]
[null,363,{"$f":"'Следене на оценките'!C366&COUNTIF('Следене на оценките'!$C$4:C366,'Следене на оценките'!C366)","v":"0"}]
[null,364,{"$f":"'Следене на оценките'!C367&COUNTIF('Следене на оценките'!$C$4:C367,'Следене на оценките'!C367)","v":"0"}]
[null,365,{"$f":"'Следене на оценките'!C368&COUNTIF('Следене на оценките'!$C$4:C368,'Следене на оценките'!C368)","v":"0"}]
[null,366,{"$f":"'Следене на оценките'!C369&COUNTIF('Следене на оценките'!$C$4:C369,'Следене на оценките'!C369)","v":"0"}]
[null,367,{"$f":"'Следене на оценките'!C370&COUNTIF('Следене на оценките'!$C$4:C370,'Следене на оценките'!C370)","v":"0"}]
[null,368,{"$f":"'Следене на оценките'!C371&COUNTIF('Следене на оценките'!$C$4:C371,'Следене на оценките'!C371)","v":"0"}]
[null,369,{"$f":"'Следене на оценките'!C372&COUNTIF('Следене на оценките'!$C$4:C372,'Следене на оценките'!C372)","v":"0"}]
[null,370,{"$f":"'Следене на оценките'!C373&COUNTIF('Следене на оценките'!$C$4:C373,'Следене на оценките'!C373)","v":"0"}]
[null,371,{"$f":"'Следене на оценките'!C374&COUNTIF('Следене на оценките'!$C$4:C374,'Следене на оценките'!C374)","v":"0"}]
[null,372,{"$f":"'Следене на оценките'!C375&COUNTIF('Следене на оценките'!$C$4:C375,'Следене на оценките'!C375)","v":"0"}]
[null,373,{"$f":"'Следене на оценките'!C376&COUNTIF('Следене на оценките'!$C$4:C376,'Следене на оценките'!C376)","v":"0"}]
[null,374,{"$f":"'Следене на оценките'!C377&COUNTIF('Следене на оценките'!$C$4:C377,'Следене на оценките'!C377)","v":"0"}]
[null,375,{"$f":"'Следене на оценките'!C378&COUNTIF('Следене на оценките'!$C$4:C378,'Следене на оценките'!C378)","v":"0"}]
[null,376,{"$f":"'Следене на оценките'!C379&COUNTIF('Следене на оценките'!$C$4:C379,'Следене на оценките'!C379)","v":"0"}]
[null,377,{"$f":"'Следене на оценките'!C380&COUNTIF('Следене на оценките'!$C$4:C380,'Следене на оценките'!C380)","v":"0"}]
[null,378,{"$f":"'Следене на оценките'!C381&COUNTIF('Следене на оценките'!$C$4:C381,'Следене на оценките'!C381)","v":"0"}]
[null,379,{"$f":"'Следене на оценките'!C382&COUNTIF('Следене на оценките'!$C$4:C382,'Следене на оценките'!C382)","v":"0"}]
[null,380,{"$f":"'Следене на оценките'!C383&COUNTIF('Следене на оценките'!$C$4:C383,'Следене на оценките'!C383)","v":"0"}]
[null,381,{"$f":"'Следене на оценките'!C384&COUNTIF('Следене на оценките'!$C$4:C384,'Следене на оценките'!C384)","v":"0"}]
[null,382,{"$f":"'Следене на оценките'!C385&COUNTIF('Следене на оценките'!$C$4:C385,'Следене на оценките'!C385)","v":"0"}]
[null,383,{"$f":"'Следене на оценките'!C386&COUNTIF('Следене на оценките'!$C$4:C386,'Следене на оценките'!C386)","v":"0"}]
[null,384,{"$f":"'Следене на оценките'!C387&COUNTIF('Следене на оценките'!$C$4:C387,'Следене на оценките'!C387)","v":"0"}]
[null,385,{"$f":"'Следене на оценките'!C388&COUNTIF('Следене на оценките'!$C$4:C388,'Следене на оценките'!C388)","v":"0"}]
[null,386,{"$f":"'Следене на оценките'!C389&COUNTIF('Следене на оценките'!$C$4:C389,'Следене на оценките'!C389)","v":"0"}]
[null,387,{"$f":"'Следене на оценките'!C390&COUNTIF('Следене на оценките'!$C$4:C390,'Следене на оценките'!C390)","v":"0"}]
[null,388,{"$f":"'Следене на оценките'!C391&COUNTIF('Следене на оценките'!$C$4:C391,'Следене на оценките'!C391)","v":"0"}]
[null,389,{"$f":"'Следене на оценките'!C392&COUNTIF('Следене на оценките'!$C$4:C392,'Следене на оценките'!C392)","v":"0"}]
[null,390,{"$f":"'Следене на оценките'!C393&COUNTIF('Следене на оценките'!$C$4:C393,'Следене на оценките'!C393)","v":"0"}]
[null,391,{"$f":"'Следене на оценките'!C394&COUNTIF('Следене на оценките'!$C$4:C394,'Следене на оценките'!C394)","v":"0"}]
[null,392,{"$f":"'Следене на оценките'!C395&COUNTIF('Следене на оценките'!$C$4:C395,'Следене на оценките'!C395)","v":"0"}]
[null,393,{"$f":"'Следене на оценките'!C396&COUNTIF('Следене на оценките'!$C$4:C396,'Следене на оценките'!C396)","v":"0"}]
[null,394,{"$f":"'Следене на оценките'!C397&COUNTIF('Следене на оценките'!$C$4:C397,'Следене на оценките'!C397)","v":"0"}]
[null,395,{"$f":"'Следене на оценките'!C398&COUNTIF('Следене на оценките'!$C$4:C398,'Следене на оценките'!C398)","v":"0"}]
[null,396,{"$f":"'Следене на оценките'!C399&COUNTIF('Следене на оценките'!$C$4:C399,'Следене на оценките'!C399)","v":"0"}]
[null,397,{"$f":"'Следене на оценките'!C400&COUNTIF('Следене на оценките'!$C$4:C400,'Следене на оценките'!C400)","v":"0"}]
[null,398,{"$f":"'Следене на оценките'!C401&COUNTIF('Следене на оценките'!$C$4:C401,'Следене на оценките'!C401)","v":"0"}]
[null,399,{"$f":"'Следене на оценките'!C402&COUNTIF('Следене на оценките'!$C$4:C402,'Следене на оценките'!C402)","v":"0"}]
[null,400,{"$f":"'Следене на оценките'!C403&COUNTIF('Следене на оценките'!$C$4:C403,'Следене на оценките'!C403)","v":"0"}]
[null,401,{"$f":"'Следене на оценките'!C404&COUNTIF('Следене на оценките'!$C$4:C404,'Следене на оценките'!C404)","v":"0"}]
[null,402,{"$f":"'Следене на оценките'!C405&COUNTIF('Следене на оценките'!$C$4:C405,'Следене на оценките'!C405)","v":"0"}]
[null,403,{"$f":"'Следене на оценките'!C406&COUNTIF('Следене на оценките'!$C$4:C406,'Следене на оценките'!C406)","v":"0"}]
[null,404,{"$f":"'Следене на оценките'!C407&COUNTIF('Следене на оценките'!$C$4:C407,'Следене на оценките'!C407)","v":"0"}]
[null,405,{"$f":"'Следене на оценките'!C408&COUNTIF('Следене на оценките'!$C$4:C408,'Следене на оценките'!C408)","v":"0"}]
[null,406,{"$f":"'Следене на оценките'!C409&COUNTIF('Следене на оценките'!$C$4:C409,'Следене на оценките'!C409)","v":"0"}]
[null,407,{"$f":"'Следене на оценките'!C410&COUNTIF('Следене на оценките'!$C$4:C410,'Следене на оценките'!C410)","v":"0"}]
[null,408,{"$f":"'Следене на оценките'!C411&COUNTIF('Следене на оценките'!$C$4:C411,'Следене на оценките'!C411)","v":"0"}]
[null,409,{"$f":"'Следене на оценките'!C412&COUNTIF('Следене на оценките'!$C$4:C412,'Следене на оценките'!C412)","v":"0"}]
[null,410,{"$f":"'Следене на оценките'!C413&COUNTIF('Следене на оценките'!$C$4:C413,'Следене на оценките'!C413)","v":"0"}]
[null,411,{"$f":"'Следене на оценките'!C414&COUNTIF('Следене на оценките'!$C$4:C414,'Следене на оценките'!C414)","v":"0"}]
[null,412,{"$f":"'Следене на оценките'!C415&COUNTIF('Следене на оценките'!$C$4:C415,'Следене на оценките'!C415)","v":"0"}]
[null,413,{"$f":"'Следене на оценките'!C416&COUNTIF('Следене на оценките'!$C$4:C416,'Следене на оценките'!C416)","v":"0"}]
[null,414,{"$f":"'Следене на оценките'!C417&COUNTIF('Следене на оценките'!$C$4:C417,'Следене на оценките'!C417)","v":"0"}]
[null,415,{"$f":"'Следене на оценките'!C418&COUNTIF('Следене на оценките'!$C$4:C418,'Следене на оценките'!C418)","v":"0"}]
[null,416,{"$f":"'Следене на оценките'!C419&COUNTIF('Следене на оценките'!$C$4:C419,'Следене на оценките'!C419)","v":"0"}]
[null,417,{"$f":"'Следене на оценките'!C420&COUNTIF('Следене на оценките'!$C$4:C420,'Следене на оценките'!C420)","v":"0"}]
[null,418,{"$f":"'Следене на оценките'!C421&COUNTIF('Следене на оценките'!$C$4:C421,'Следене на оценките'!C421)","v":"0"}]
[null,419,{"$f":"'Следене на оценките'!C422&COUNTIF('Следене на оценките'!$C$4:C422,'Следене на оценките'!C422)","v":"0"}]
[null,420,{"$f":"'Следене на оценките'!C423&COUNTIF('Следене на оценките'!$C$4:C423,'Следене на оценките'!C423)","v":"0"}]
[null,421,{"$f":"'Следене на оценките'!C424&COUNTIF('Следене на оценките'!$C$4:C424,'Следене на оценките'!C424)","v":"0"}]
[null,422,{"$f":"'Следене на оценките'!C425&COUNTIF('Следене на оценките'!$C$4:C425,'Следене на оценките'!C425)","v":"0"}]
[null,423,{"$f":"'Следене на оценките'!C426&COUNTIF('Следене на оценките'!$C$4:C426,'Следене на оценките'!C426)","v":"0"}]
[null,424,{"$f":"'Следене на оценките'!C427&COUNTIF('Следене на оценките'!$C$4:C427,'Следене на оценките'!C427)","v":"0"}]
[null,425,{"$f":"'Следене на оценките'!C428&COUNTIF('Следене на оценките'!$C$4:C428,'Следене на оценките'!C428)","v":"0"}]
[null,426,{"$f":"'Следене на оценките'!C429&COUNTIF('Следене на оценките'!$C$4:C429,'Следене на оценките'!C429)","v":"0"}]
[null,427,{"$f":"'Следене на оценките'!C430&COUNTIF('Следене на оценките'!$C$4:C430,'Следене на оценките'!C430)","v":"0"}]
[null,428,{"$f":"'Следене на оценките'!C431&COUNTIF('Следене на оценките'!$C$4:C431,'Следене на оценките'!C431)","v":"0"}]
[null,429,{"$f":"'Следене на оценките'!C432&COUNTIF('Следене на оценките'!$C$4:C432,'Следене на оценките'!C432)","v":"0"}]
[null,430,{"$f":"'Следене на оценките'!C433&COUNTIF('Следене на оценките'!$C$4:C433,'Следене на оценките'!C433)","v":"0"}]
[null,431,{"$f":"'Следене на оценките'!C434&COUNTIF('Следене на оценките'!$C$4:C434,'Следене на оценките'!C434)","v":"0"}]
[null,432,{"$f":"'Следене на оценките'!C435&COUNTIF('Следене на оценките'!$C$4:C435,'Следене на оценките'!C435)","v":"0"}]
[null,433,{"$f":"'Следене на оценките'!C436&COUNTIF('Следене на оценките'!$C$4:C436,'Следене на оценките'!C436)","v":"0"}]
[null,434,{"$f":"'Следене на оценките'!C437&COUNTIF('Следене на оценките'!$C$4:C437,'Следене на оценките'!C437)","v":"0"}]
[null,435,{"$f":"'Следене на оценките'!C438&COUNTIF('Следене на оценките'!$C$4:C438,'Следене на оценките'!C438)","v":"0"}]
[null,436,{"$f":"'Следене на оценките'!C439&COUNTIF('Следене на оценките'!$C$4:C439,'Следене на оценките'!C439)","v":"0"}]
[null,437,{"$f":"'Следене на оценките'!C440&COUNTIF('Следене на оценките'!$C$4:C440,'Следене на оценките'!C440)","v":"0"}]
[null,438,{"$f":"'Следене на оценките'!C441&COUNTIF('Следене на оценките'!$C$4:C441,'Следене на оценките'!C441)","v":"0"}]
[null,439,{"$f":"'Следене на оценките'!C442&COUNTIF('Следене на оценките'!$C$4:C442,'Следене на оценките'!C442)","v":"0"}]
[null,440,{"$f":"'Следене на оценките'!C443&COUNTIF('Следене на оценките'!$C$4:C443,'Следене на оценките'!C443)","v":"0"}]
[null,441,{"$f":"'Следене на оценките'!C444&COUNTIF('Следене на оценките'!$C$4:C444,'Следене на оценките'!C444)","v":"0"}]
[null,442,{"$f":"'Следене на оценките'!C445&COUNTIF('Следене на оценките'!$C$4:C445,'Следене на оценките'!C445)","v":"0"}]
[null,443,{"$f":"'Следене на оценките'!C446&COUNTIF('Следене на оценките'!$C$4:C446,'Следене на оценките'!C446)","v":"0"}]
[null,444,{"$f":"'Следене на оценките'!C447&COUNTIF('Следене на оценките'!$C$4:C447,'Следене на оценките'!C447)","v":"0"}]
[null,445,{"$f":"'Следене на оценките'!C448&COUNTIF('Следене на оценките'!$C$4:C448,'Следене на оценките'!C448)","v":"0"}]
[null,446,{"$f":"'Следене на оценките'!C449&COUNTIF('Следене на оценките'!$C$4:C449,'Следене на оценките'!C449)","v":"0"}]
[null,447,{"$f":"'Следене на оценките'!C450&COUNTIF('Следене на оценките'!$C$4:C450,'Следене на оценките'!C450)","v":"0"}]
[null,448,{"$f":"'Следене на оценките'!C451&COUNTIF('Следене на оценките'!$C$4:C451,'Следене на оценките'!C451)","v":"0"}]
[null,449,{"$f":"'Следене на оценките'!C452&COUNTIF('Следене на оценките'!$C$4:C452,'Следене на оценките'!C452)","v":"0"}]
[null,450,{"$f":"'Следене на оценките'!C453&COUNTIF('Следене на оценките'!$C$4:C453,'Следене на оценките'!C453)","v":"0"}]
[null,451,{"$f":"'Следене на оценките'!C454&COUNTIF('Следене на оценките'!$C$4:C454,'Следене на оценките'!C454)","v":"0"}]
[null,452,{"$f":"'Следене на оценките'!C455&COUNTIF('Следене на оценките'!$C$4:C455,'Следене на оценките'!C455)","v":"0"}]
[null,453,{"$f":"'Следене на оценките'!C456&COUNTIF('Следене на оценките'!$C$4:C456,'Следене на оценките'!C456)","v":"0"}]
[null,454,{"$f":"'Следене на оценките'!C457&COUNTIF('Следене на оценките'!$C$4:C457,'Следене на оценките'!C457)","v":"0"}]
[null,455,{"$f":"'Следене на оценките'!C458&COUNTIF('Следене на оценките'!$C$4:C458,'Следене на оценките'!C458)","v":"0"}]
[null,456,{"$f":"'Следене на оценките'!C459&COUNTIF('Следене на оценките'!$C$4:C459,'Следене на оценките'!C459)","v":"0"}]
[null,457,{"$f":"'Следене на оценките'!C460&COUNTIF('Следене на оценките'!$C$4:C460,'Следене на оценките'!C460)","v":"0"}]
[null,458,{"$f":"'Следене на оценките'!C461&COUNTIF('Следене на оценките'!$C$4:C461,'Следене на оценките'!C461)","v":"0"}]
[null,459,{"$f":"'Следене на оценките'!C462&COUNTIF('Следене на оценките'!$C$4:C462,'Следене на оценките'!C462)","v":"0"}]
[null,460,{"$f":"'Следене на оценките'!C463&COUNTIF('Следене на оценките'!$C$4:C463,'Следене на оценките'!C463)","v":"0"}]
[null,461,{"$f":"'Следене на оценките'!C464&COUNTIF('Следене на оценките'!$C$4:C464,'Следене на оценките'!C464)","v":"0"}]
[null,462,{"$f":"'Следене на оценките'!C465&COUNTIF('Следене на оценките'!$C$4:C465,'Следене на оценките'!C465)","v":"0"}]
[null,463,{"$f":"'Следене на оценките'!C466&COUNTIF('Следене на оценките'!$C$4:C466,'Следене на оценките'!C466)","v":"0"}]
[null,464,{"$f":"'Следене на оценките'!C467&COUNTIF('Следене на оценките'!$C$4:C467,'Следене на оценките'!C467)","v":"0"}]
[null,465,{"$f":"'Следене на оценките'!C468&COUNTIF('Следене на оценките'!$C$4:C468,'Следене на оценките'!C468)","v":"0"}]
[null,466,{"$f":"'Следене на оценките'!C469&COUNTIF('Следене на оценките'!$C$4:C469,'Следене на оценките'!C469)","v":"0"}]
[null,467,{"$f":"'Следене на оценките'!C470&COUNTIF('Следене на оценките'!$C$4:C470,'Следене на оценките'!C470)","v":"0"}]
[null,468,{"$f":"'Следене на оценките'!C471&COUNTIF('Следене на оценките'!$C$4:C471,'Следене на оценките'!C471)","v":"0"}]
[null,469,{"$f":"'Следене на оценките'!C472&COUNTIF('Следене на оценките'!$C$4:C472,'Следене на оценките'!C472)","v":"0"}]
[null,470,{"$f":"'Следене на оценките'!C473&COUNTIF('Следене на оценките'!$C$4:C473,'Следене на оценките'!C473)","v":"0"}]
[null,471,{"$f":"'Следене на оценките'!C474&COUNTIF('Следене на оценките'!$C$4:C474,'Следене на оценките'!C474)","v":"0"}]
[null,472,{"$f":"'Следене на оценките'!C475&COUNTIF('Следене на оценките'!$C$4:C475,'Следене на оценките'!C475)","v":"0"}]
[null,473,{"$f":"'Следене на оценките'!C476&COUNTIF('Следене на оценките'!$C$4:C476,'Следене на оценките'!C476)","v":"0"}]
[null,474,{"$f":"'Следене на оценките'!C477&COUNTIF('Следене на оценките'!$C$4:C477,'Следене на оценките'!C477)","v":"0"}]
[null,475,{"$f":"'Следене на оценките'!C478&COUNTIF('Следене на оценките'!$C$4:C478,'Следене на оценките'!C478)","v":"0"}]
[null,476,{"$f":"'Следене на оценките'!C479&COUNTIF('Следене на оценките'!$C$4:C479,'Следене на оценките'!C479)","v":"0"}]
[null,477,{"$f":"'Следене на оценките'!C480&COUNTIF('Следене на оценките'!$C$4:C480,'Следене на оценките'!C480)","v":"0"}]
[null,478,{"$f":"'Следене на оценките'!C481&COUNTIF('Следене на оценките'!$C$4:C481,'Следене на оценките'!C481)","v":"0"}]
[null,479,{"$f":"'Следене на оценките'!C482&COUNTIF('Следене на оценките'!$C$4:C482,'Следене на оценките'!C482)","v":"0"}]
[null,480,{"$f":"'Следене на оценките'!C483&COUNTIF('Следене на оценките'!$C$4:C483,'Следене на оценките'!C483)","v":"0"}]
[null,481,{"$f":"'Следене на оценките'!C484&COUNTIF('Следене на оценките'!$C$4:C484,'Следене на оценките'!C484)","v":"0"}]
[null,482,{"$f":"'Следене на оценките'!C485&COUNTIF('Следене на оценките'!$C$4:C485,'Следене на оценките'!C485)","v":"0"}]
[null,483,{"$f":"'Следене на оценките'!C486&COUNTIF('Следене на оценките'!$C$4:C486,'Следене на оценките'!C486)","v":"0"}]
[null,484,{"$f":"'Следене на оценките'!C487&COUNTIF('Следене на оценките'!$C$4:C487,'Следене на оценките'!C487)","v":"0"}]
[null,485,{"$f":"'Следене на оценките'!C488&COUNTIF('Следене на оценките'!$C$4:C488,'Следене на оценките'!C488)","v":"0"}]
[null,486,{"$f":"'Следене на оценките'!C489&COUNTIF('Следене на оценките'!$C$4:C489,'Следене на оценките'!C489)","v":"0"}]
[null,487,{"$f":"'Следене на оценките'!C490&COUNTIF('Следене на оценките'!$C$4:C490,'Следене на оценките'!C490)","v":"0"}]
[null,488,{"$f":"'Следене на оценките'!C491&COUNTIF('Следене на оценките'!$C$4:C491,'Следене на оценките'!C491)","v":"0"}]
[null,489,{"$f":"'Следене на оценките'!C492&COUNTIF('Следене на оценките'!$C$4:C492,'Следене на оценките'!C492)","v":"0"}]
[null,490,{"$f":"'Следене на оценките'!C493&COUNTIF('Следене на оценките'!$C$4:C493,'Следене на оценките'!C493)","v":"0"}]
[null,491,{"$f":"'Следене на оценките'!C494&COUNTIF('Следене на оценките'!$C$4:C494,'Следене на оценките'!C494)","v":"0"}]
[null,492,{"$f":"'Следене на оценките'!C495&COUNTIF('Следене на оценките'!$C$4:C495,'Следене на оценките'!C495)","v":"0"}]
[null,493,{"$f":"'Следене на оценките'!C496&COUNTIF('Следене на оценките'!$C$4:C496,'Следене на оценките'!C496)","v":"0"}]
[null,494,{"$f":"'Следене на оценките'!C497&COUNTIF('Следене на оценките'!$C$4:C497,'Следене на оценките'!C497)","v":"0"}]
[null,495,{"$f":"'Следене на оценките'!C498&COUNTIF('Следене на оценките'!$C$4:C498,'Следене на оценките'!C498)","v":"0"}]
[null,496,{"$f":"'Следене на оценките'!C499&COUNTIF('Следене на оценките'!$C$4:C499,'Следене на оценките'!C499)","v":"0"}]
[null,497,{"$f":"'Следене на оценките'!C500&COUNTIF('Следене на оценките'!$C$4:C500,'Следене на оценките'!C500)","v":"0"}]
[null,498,{"$f":"'Следене на оценките'!C501&COUNTIF('Следене на оценките'!$C$4:C501,'Следене на оценките'!C501)","v":"0"}]
[null,499,{"$f":"'Следене на оценките'!C502&COUNTIF('Следене на оценките'!$C$4:C502,'Следене на оценките'!C502)","v":"0"}]
[null,500,{"$f":"'Следене на оценките'!C503&COUNTIF('Следене на оценките'!$C$4:C503,'Следене на оценките'!C503)","v":"0"}]
[null,501,{"$f":"'Следене на оценките'!C504&COUNTIF('Следене на оценките'!$C$4:C504,'Следене на оценките'!C504)","v":"0"}]
[null,502,{"$f":"'Следене на оценките'!C505&COUNTIF('Следене на оценките'!$C$4:C505,'Следене на оценките'!C505)","v":"0"}]
[null,503,{"$f":"'Следене на оценките'!C506&COUNTIF('Следене на оценките'!$C$4:C506,'Следене на оценките'!C506)","v":"0"}]
[null,504,{"$f":"'Следене на оценките'!C507&COUNTIF('Следене на оценките'!$C$4:C507,'Следене на оценките'!C507)","v":"0"}]
[null,505,{"$f":"'Следене на оценките'!C508&COUNTIF('Следене на оценките'!$C$4:C508,'Следене на оценките'!C508)","v":"0"}]
[null,506,{"$f":"'Следене на оценките'!C509&COUNTIF('Следене на оценките'!$C$4:C509,'Следене на оценките'!C509)","v":"0"}]
[null,507,{"$f":"'Следене на оценките'!C510&COUNTIF('Следене на оценките'!$C$4:C510,'Следене на оценките'!C510)","v":"0"}]
[null,508,{"$f":"'Следене на оценките'!C511&COUNTIF('Следене на оценките'!$C$4:C511,'Следене на оценките'!C511)","v":"0"}]
[null,509,{"$f":"'Следене на оценките'!C512&COUNTIF('Следене на оценките'!$C$4:C512,'Следене на оценките'!C512)","v":"0"}]
[null,510,{"$f":"'Следене на оценките'!C513&COUNTIF('Следене на оценките'!$C$4:C513,'Следене на оценките'!C513)","v":"0"}]
[null,511,{"$f":"'Следене на оценките'!C514&COUNTIF('Следене на оценките'!$C$4:C514,'Следене на оценките'!C514)","v":"0"}]
[null,512,{"$f":"'Следене на оценките'!C515&COUNTIF('Следене на оценките'!$C$4:C515,'Следене на оценките'!C515)","v":"0"}]
[null,513,{"$f":"'Следене на оценките'!C516&COUNTIF('Следене на оценките'!$C$4:C516,'Следене на оценките'!C516)","v":"0"}]
[null,514,{"$f":"'Следене на оценките'!C517&COUNTIF('Следене на оценките'!$C$4:C517,'Следене на оценките'!C517)","v":"0"}]
[null,515,{"$f":"'Следене на оценките'!C518&COUNTIF('Следене на оценките'!$C$4:C518,'Следене на оценките'!C518)","v":"0"}]
[null,516,{"$f":"'Следене на оценките'!C519&COUNTIF('Следене на оценките'!$C$4:C519,'Следене на оценките'!C519)","v":"0"}]
[null,517,{"$f":"'Следене на оценките'!C520&COUNTIF('Следене на оценките'!$C$4:C520,'Следене на оценките'!C520)","v":"0"}]
[null,518,{"$f":"'Следене на оценките'!C521&COUNTIF('Следене на оценките'!$C$4:C521,'Следене на оценките'!C521)","v":"0"}]
[null,519,{"$f":"'Следене на оценките'!C522&COUNTIF('Следене на оценките'!$C$4:C522,'Следене на оценките'!C522)","v":"0"}]
[null,520,{"$f":"'Следене на оценките'!C523&COUNTIF('Следене на оценките'!$C$4:C523,'Следене на оценките'!C523)","v":"0"}]
[null,521,{"$f":"'Следене на оценките'!C524&COUNTIF('Следене на оценките'!$C$4:C524,'Следене на оценките'!C524)","v":"0"}]
[null,522,{"$f":"'Следене на оценките'!C525&COUNTIF('Следене на оценките'!$C$4:C525,'Следене на оценките'!C525)","v":"0"}]
[null,523,{"$f":"'Следене на оценките'!C526&COUNTIF('Следене на оценките'!$C$4:C526,'Следене на оценките'!C526)","v":"0"}]
[null,524,{"$f":"'Следене на оценките'!C527&COUNTIF('Следене на оценките'!$C$4:C527,'Следене на оценките'!C527)","v":"0"}]
[null,525,{"$f":"'Следене на оценките'!C528&COUNTIF('Следене на оценките'!$C$4:C528,'Следене на оценките'!C528)","v":"0"}]
[null,526,{"$f":"'Следене на оценките'!C529&COUNTIF('Следене на оценките'!$C$4:C529,'Следене на оценките'!C529)","v":"0"}]
[null,527,{"$f":"'Следене на оценките'!C530&COUNTIF('Следене на оценките'!$C$4:C530,'Следене на оценките'!C530)","v":"0"}]
[null,528,{"$f":"'Следене на оценките'!C531&COUNTIF('Следене на оценките'!$C$4:C531,'Следене на оценките'!C531)","v":"0"}]
[null,529,{"$f":"'Следене на оценките'!C532&COUNTIF('Следене на оценките'!$C$4:C532,'Следене на оценките'!C532)","v":"0"}]
[null,530,{"$f":"'Следене на оценките'!C533&COUNTIF('Следене на оценките'!$C$4:C533,'Следене на оценките'!C533)","v":"0"}]
[null,531,{"$f":"'Следене на оценките'!C534&COUNTIF('Следене на оценките'!$C$4:C534,'Следене на оценките'!C534)","v":"0"}]
[null,532,{"$f":"'Следене на оценките'!C535&COUNTIF('Следене на оценките'!$C$4:C535,'Следене на оценките'!C535)","v":"0"}]
[null,533,{"$f":"'Следене на оценките'!C536&COUNTIF('Следене на оценките'!$C$4:C536,'Следене на оценките'!C536)","v":"0"}]
[null,534,{"$f":"'Следене на оценките'!C537&COUNTIF('Следене на оценките'!$C$4:C537,'Следене на оценките'!C537)","v":"0"}]
[null,535,{"$f":"'Следене на оценките'!C538&COUNTIF('Следене на оценките'!$C$4:C538,'Следене на оценките'!C538)","v":"0"}]
[null,536,{"$f":"'Следене на оценките'!C539&COUNTIF('Следене на оценките'!$C$4:C539,'Следене на оценките'!C539)","v":"0"}]
[null,537,{"$f":"'Следене на оценките'!C540&COUNTIF('Следене на оценките'!$C$4:C540,'Следене на оценките'!C540)","v":"0"}]
[null,538,{"$f":"'Следене на оценките'!C541&COUNTIF('Следене на оценките'!$C$4:C541,'Следене на оценките'!C541)","v":"0"}]
[null,539,{"$f":"'Следене на оценките'!C542&COUNTIF('Следене на оценките'!$C$4:C542,'Следене на оценките'!C542)","v":"0"}]
[null,540,{"$f":"'Следене на оценките'!C543&COUNTIF('Следене на оценките'!$C$4:C543,'Следене на оценките'!C543)","v":"0"}]
[null,541,{"$f":"'Следене на оценките'!C544&COUNTIF('Следене на оценките'!$C$4:C544,'Следене на оценките'!C544)","v":"0"}]
[null,542,{"$f":"'Следене на оценките'!C545&COUNTIF('Следене на оценките'!$C$4:C545,'Следене на оценките'!C545)","v":"0"}]
[null,543,{"$f":"'Следене на оценките'!C546&COUNTIF('Следене на оценките'!$C$4:C546,'Следене на оценките'!C546)","v":"0"}]
[null,544,{"$f":"'Следене на оценките'!C547&COUNTIF('Следене на оценките'!$C$4:C547,'Следене на оценките'!C547)","v":"0"}]
[null,545,{"$f":"'Следене на оценките'!C548&COUNTIF('Следене на оценките'!$C$4:C548,'Следене на оценките'!C548)","v":"0"}]
[null,546,{"$f":"'Следене на оценките'!C549&COUNTIF('Следене на оценките'!$C$4:C549,'Следене на оценките'!C549)","v":"0"}]
[null,547,{"$f":"'Следене на оценките'!C550&COUNTIF('Следене на оценките'!$C$4:C550,'Следене на оценките'!C550)","v":"0"}]
[null,548,{"$f":"'Следене на оценките'!C551&COUNTIF('Следене на оценките'!$C$4:C551,'Следене на оценките'!C551)","v":"0"}]
[null,549,{"$f":"'Следене на оценките'!C552&COUNTIF('Следене на оценките'!$C$4:C552,'Следене на оценките'!C552)","v":"0"}]
[null,550,{"$f":"'Следене на оценките'!C553&COUNTIF('Следене на оценките'!$C$4:C553,'Следене на оценките'!C553)","v":"0"}]
[null,551,{"$f":"'Следене на оценките'!C554&COUNTIF('Следене на оценките'!$C$4:C554,'Следене на оценките'!C554)","v":"0"}]
[null,552,{"$f":"'Следене на оценките'!C555&COUNTIF('Следене на оценките'!$C$4:C555,'Следене на оценките'!C555)","v":"0"}]
[null,553,{"$f":"'Следене на оценките'!C556&COUNTIF('Следене на оценките'!$C$4:C556,'Следене на оценките'!C556)","v":"0"}]
[null,554,{"$f":"'Следене на оценките'!C557&COUNTIF('Следене на оценките'!$C$4:C557,'Следене на оценките'!C557)","v":"0"}]
[null,555,{"$f":"'Следене на оценките'!C558&COUNTIF('Следене на оценките'!$C$4:C558,'Следене на оценките'!C558)","v":"0"}]
[null,556,{"$f":"'Следене на оценките'!C559&COUNTIF('Следене на оценките'!$C$4:C559,'Следене на оценките'!C559)","v":"0"}]
[null,557,{"$f":"'Следене на оценките'!C560&COUNTIF('Следене на оценките'!$C$4:C560,'Следене на оценките'!C560)","v":"0"}]
[null,558,{"$f":"'Следене на оценките'!C561&COUNTIF('Следене на оценките'!$C$4:C561,'Следене на оценките'!C561)","v":"0"}]
[null,559,{"$f":"'Следене на оценките'!C562&COUNTIF('Следене на оценките'!$C$4:C562,'Следене на оценките'!C562)","v":"0"}]
[null,560,{"$f":"'Следене на оценките'!C563&COUNTIF('Следене на оценките'!$C$4:C563,'Следене на оценките'!C563)","v":"0"}]
[null,561,{"$f":"'Следене на оценките'!C564&COUNTIF('Следене на оценките'!$C$4:C564,'Следене на оценките'!C564)","v":"0"}]
[null,562,{"$f":"'Следене на оценките'!C565&COUNTIF('Следене на оценките'!$C$4:C565,'Следене на оценките'!C565)","v":"0"}]
[null,563,{"$f":"'Следене на оценките'!C566&COUNTIF('Следене на оценките'!$C$4:C566,'Следене на оценките'!C566)","v":"0"}]
[null,564,{"$f":"'Следене на оценките'!C567&COUNTIF('Следене на оценките'!$C$4:C567,'Следене на оценките'!C567)","v":"0"}]
[null,565,{"$f":"'Следене на оценките'!C568&COUNTIF('Следене на оценките'!$C$4:C568,'Следене на оценките'!C568)","v":"0"}]
[null,566,{"$f":"'Следене на оценките'!C569&COUNTIF('Следене на оценките'!$C$4:C569,'Следене на оценките'!C569)","v":"0"}]
[null,567,{"$f":"'Следене на оценките'!C570&COUNTIF('Следене на оценките'!$C$4:C570,'Следене на оценките'!C570)","v":"0"}]
[null,568,{"$f":"'Следене на оценките'!C571&COUNTIF('Следене на оценките'!$C$4:C571,'Следене на оценките'!C571)","v":"0"}]
[null,569,{"$f":"'Следене на оценките'!C572&COUNTIF('Следене на оценките'!$C$4:C572,'Следене на оценките'!C572)","v":"0"}]
[null,570,{"$f":"'Следене на оценките'!C573&COUNTIF('Следене на оценките'!$C$4:C573,'Следене на оценките'!C573)","v":"0"}]
[null,571,{"$f":"'Следене на оценките'!C574&COUNTIF('Следене на оценките'!$C$4:C574,'Следене на оценките'!C574)","v":"0"}]
[null,572,{"$f":"'Следене на оценките'!C575&COUNTIF('Следене на оценките'!$C$4:C575,'Следене на оценките'!C575)","v":"0"}]
[null,573,{"$f":"'Следене на оценките'!C576&COUNTIF('Следене на оценките'!$C$4:C576,'Следене на оценките'!C576)","v":"0"}]
[null,574,{"$f":"'Следене на оценките'!C577&COUNTIF('Следене на оценките'!$C$4:C577,'Следене на оценките'!C577)","v":"0"}]
[null,575,{"$f":"'Следене на оценките'!C578&COUNTIF('Следене на оценките'!$C$4:C578,'Следене на оценките'!C578)","v":"0"}]
[null,576,{"$f":"'Следене на оценките'!C579&COUNTIF('Следене на оценките'!$C$4:C579,'Следене на оценките'!C579)","v":"0"}]
[null,577,{"$f":"'Следене на оценките'!C580&COUNTIF('Следене на оценките'!$C$4:C580,'Следене на оценките'!C580)","v":"0"}]
[null,578,{"$f":"'Следене на оценките'!C581&COUNTIF('Следене на оценките'!$C$4:C581,'Следене на оценките'!C581)","v":"0"}]
[null,579,{"$f":"'Следене на оценките'!C582&COUNTIF('Следене на оценките'!$C$4:C582,'Следене на оценките'!C582)","v":"0"}]
[null,580,{"$f":"'Следене на оценките'!C583&COUNTIF('Следене на оценките'!$C$4:C583,'Следене на оценките'!C583)","v":"0"}]
[null,581,{"$f":"'Следене на оценките'!C584&COUNTIF('Следене на оценките'!$C$4:C584,'Следене на оценките'!C584)","v":"0"}]
[null,582,{"$f":"'Следене на оценките'!C585&COUNTIF('Следене на оценките'!$C$4:C585,'Следене на оценките'!C585)","v":"0"}]
[null,583,{"$f":"'Следене на оценките'!C586&COUNTIF('Следене на оценките'!$C$4:C586,'Следене на оценките'!C586)","v":"0"}]
[null,584,{"$f":"'Следене на оценките'!C587&COUNTIF('Следене на оценките'!$C$4:C587,'Следене на оценките'!C587)","v":"0"}]
[null,585,{"$f":"'Следене на оценките'!C588&COUNTIF('Следене на оценките'!$C$4:C588,'Следене на оценките'!C588)","v":"0"}]
[null,586,{"$f":"'Следене на оценките'!C589&COUNTIF('Следене на оценките'!$C$4:C589,'Следене на оценките'!C589)","v":"0"}]
[null,587,{"$f":"'Следене на оценките'!C590&COUNTIF('Следене на оценките'!$C$4:C590,'Следене на оценките'!C590)","v":"0"}]
[null,588,{"$f":"'Следене на оценките'!C591&COUNTIF('Следене на оценките'!$C$4:C591,'Следене на оценките'!C591)","v":"0"}]
[null,589,{"$f":"'Следене на оценките'!C592&COUNTIF('Следене на оценките'!$C$4:C592,'Следене на оценките'!C592)","v":"0"}]
[null,590,{"$f":"'Следене на оценките'!C593&COUNTIF('Следене на оценките'!$C$4:C593,'Следене на оценките'!C593)","v":"0"}]
[null,591,{"$f":"'Следене на оценките'!C594&COUNTIF('Следене на оценките'!$C$4:C594,'Следене на оценките'!C594)","v":"0"}]
[null,592,{"$f":"'Следене на оценките'!C595&COUNTIF('Следене на оценките'!$C$4:C595,'Следене на оценките'!C595)","v":"0"}]
[null,593,{"$f":"'Следене на оценките'!C596&COUNTIF('Следене на оценките'!$C$4:C596,'Следене на оценките'!C596)","v":"0"}]
[null,594,{"$f":"'Следене на оценките'!C597&COUNTIF('Следене на оценките'!$C$4:C597,'Следене на оценките'!C597)","v":"0"}]
[null,595,{"$f":"'Следене на оценките'!C598&COUNTIF('Следене на оценките'!$C$4:C598,'Следене на оценките'!C598)","v":"0"}]
[null,596,{"$f":"'Следене на оценките'!C599&COUNTIF('Следене на оценките'!$C$4:C599,'Следене на оценките'!C599)","v":"0"}]
[null,597,{"$f":"'Следене на оценките'!C600&COUNTIF('Следене на оценките'!$C$4:C600,'Следене на оценките'!C600)","v":"0"}]
[null,598,{"$f":"'Следене на оценките'!C601&COUNTIF('Следене на оценките'!$C$4:C601,'Следене на оценките'!C601)","v":"0"}]
[null,599,{"$f":"'Следене на оценките'!C602&COUNTIF('Следене на оценките'!$C$4:C602,'Следене на оценките'!C602)","v":"0"}]
[null,600,{"$f":"'Следене на оценките'!C603&COUNTIF('Следене на оценките'!$C$4:C603,'Следене на оценките'!C603)","v":"0"}]
[null,601,{"$f":"'Следене на оценките'!C604&COUNTIF('Следене на оценките'!$C$4:C604,'Следене на оценките'!C604)","v":"0"}]
[null,602,{"$f":"'Следене на оценките'!C605&COUNTIF('Следене на оценките'!$C$4:C605,'Следене на оценките'!C605)","v":"0"}]
[null,603,{"$f":"'Следене на оценките'!C606&COUNTIF('Следене на оценките'!$C$4:C606,'Следене на оценките'!C606)","v":"0"}]
[null,604,{"$f":"'Следене на оценките'!C607&COUNTIF('Следене на оценките'!$C$4:C607,'Следене на оценките'!C607)","v":"0"}]
[null,605,{"$f":"'Следене на оценките'!C608&COUNTIF('Следене на оценките'!$C$4:C608,'Следене на оценките'!C608)","v":"0"}]
[null,606,{"$f":"'Следене на оценките'!C609&COUNTIF('Следене на оценките'!$C$4:C609,'Следене на оценките'!C609)","v":"0"}]
[null,607,{"$f":"'Следене на оценките'!C610&COUNTIF('Следене на оценките'!$C$4:C610,'Следене на оценките'!C610)","v":"0"}]
[null,608,{"$f":"'Следене на оценките'!C611&COUNTIF('Следене на оценките'!$C$4:C611,'Следене на оценките'!C611)","v":"0"}]
[null,609,{"$f":"'Следене на оценките'!C612&COUNTIF('Следене на оценките'!$C$4:C612,'Следене на оценките'!C612)","v":"0"}]
[null,610,{"$f":"'Следене на оценките'!C613&COUNTIF('Следене на оценките'!$C$4:C613,'Следене на оценките'!C613)","v":"0"}]
[null,611,{"$f":"'Следене на оценките'!C614&COUNTIF('Следене на оценките'!$C$4:C614,'Следене на оценките'!C614)","v":"0"}]
[null,612,{"$f":"'Следене на оценките'!C615&COUNTIF('Следене на оценките'!$C$4:C615,'Следене на оценките'!C615)","v":"0"}]
[null,613,{"$f":"'Следене на оценките'!C616&COUNTIF('Следене на оценките'!$C$4:C616,'Следене на оценките'!C616)","v":"0"}]
[null,614,{"$f":"'Следене на оценките'!C617&COUNTIF('Следене на оценките'!$C$4:C617,'Следене на оценките'!C617)","v":"0"}]
[null,615,{"$f":"'Следене на оценките'!C618&COUNTIF('Следене на оценките'!$C$4:C618,'Следене на оценките'!C618)","v":"0"}]
[null,616,{"$f":"'Следене на оценките'!C619&COUNTIF('Следене на оценките'!$C$4:C619,'Следене на оценките'!C619)","v":"0"}]
[null,617,{"$f":"'Следене на оценките'!C620&COUNTIF('Следене на оценките'!$C$4:C620,'Следене на оценките'!C620)","v":"0"}]
[null,618,{"$f":"'Следене на оценките'!C621&COUNTIF('Следене на оценките'!$C$4:C621,'Следене на оценките'!C621)","v":"0"}]
[null,619,{"$f":"'Следене на оценките'!C622&COUNTIF('Следене на оценките'!$C$4:C622,'Следене на оценките'!C622)","v":"0"}]
[null,620,{"$f":"'Следене на оценките'!C623&COUNTIF('Следене на оценките'!$C$4:C623,'Следене на оценките'!C623)","v":"0"}]
[null,621,{"$f":"'Следене на оценките'!C624&COUNTIF('Следене на оценките'!$C$4:C624,'Следене на оценките'!C624)","v":"0"}]
[null,622,{"$f":"'Следене на оценките'!C625&COUNTIF('Следене на оценките'!$C$4:C625,'Следене на оценките'!C625)","v":"0"}]
[null,623,{"$f":"'Следене на оценките'!C626&COUNTIF('Следене на оценките'!$C$4:C626,'Следене на оценките'!C626)","v":"0"}]
[null,624,{"$f":"'Следене на оценките'!C627&COUNTIF('Следене на оценките'!$C$4:C627,'Следене на оценките'!C627)","v":"0"}]
[null,625,{"$f":"'Следене на оценките'!C628&COUNTIF('Следене на оценките'!$C$4:C628,'Следене на оценките'!C628)","v":"0"}]